{"text_format":"3","workbook":"xlsx","n_sheets":12,"sheets":["Jaan","Veebr","Märts","Apr","Mai","Juuni","Juuli","Aug","Sept","Okt","Nov","Dets"],"not_rendered":{"images":26,"defined_names":25},"read":"whole","date_system":"1900"}

{"sheet":"Jaan","index":0,"n_rows":15,"n_cols":11,"rows_kept":15,"merged":[[2,1,2,5],[14,3,14,7],[15,3,15,7]]}
[{"$nulls":10},"VALIGE AASTA:"]
[{"$nulls":10},{"$f":"YEAR(TODAY())","v":2018}]
[null,{"$f":"UPPER(TEXT(DATE(Kalendriaasta,1,1),\"mmmm yyyy\"))","v":"JAANUAR 2018"}]
[null,"ESMASPÄEV","TEISIPÄEV","KOLMAPÄEV","NELJAPÄEV","REEDE","LAUPÄEV","PÜHAPÄEV"]
[null,{"$f":"IF(DAY(JaanP1)=1,\"\",IF(AND(YEAR(JaanP1+1)=Kalendriaasta,MONTH(JaanP1+1)=1),JaanP1+1,\"\"))","v":"2018-01-01"},{"$f":"IF(DAY(JaanP1)=1,\"\",IF(AND(YEAR(JaanP1+2)=Kalendriaasta,MONTH(JaanP1+2)=1),JaanP1+2,\"\"))","v":"2018-01-02"},{"$f":"IF(DAY(JaanP1)=1,\"\",IF(AND(YEAR(JaanP1+3)=Kalendriaasta,MONTH(JaanP1+3)=1),JaanP1+3,\"\"))","v":"2018-01-03"},{"$f":"IF(DAY(JaanP1)=1,\"\",IF(AND(YEAR(JaanP1+4)=Kalendriaasta,MONTH(JaanP1+4)=1),JaanP1+4,\"\"))","v":"2018-01-04"},{"$f":"IF(DAY(JaanP1)=1,\"\",IF(AND(YEAR(JaanP1+5)=Kalendriaasta,MONTH(JaanP1+5)=1),JaanP1+5,\"\"))","v":"2018-01-05"},{"$f":"IF(DAY(JaanP1)=1,\"\",IF(AND(YEAR(JaanP1+6)=Kalendriaasta,MONTH(JaanP1+6)=1),JaanP1+6,\"\"))","v":"2018-01-06"},{"$f":"IF(DAY(JaanP1)=1,IF(AND(YEAR(JaanP1)=Kalendriaasta,MONTH(JaanP1)=1),JaanP1,\"\"),IF(AND(YEAR(JaanP1+7)=Kalendriaasta,MONTH(JaanP1+7)=1),JaanP1+7,\"\"))","v":"2018-01-07"}]
[]
[null,{"$f":"IF(DAY(JaanP1)=1,IF(AND(YEAR(JaanP1+1)=Kalendriaasta,MONTH(JaanP1+1)=1),JaanP1+1,\"\"),IF(AND(YEAR(JaanP1+8)=Kalendriaasta,MONTH(JaanP1+8)=1),JaanP1+8,\"\"))","v":"2018-01-08"},{"$f":"IF(DAY(JaanP1)=1,IF(AND(YEAR(JaanP1+2)=Kalendriaasta,MONTH(JaanP1+2)=1),JaanP1+2,\"\"),IF(AND(YEAR(JaanP1+9)=Kalendriaasta,MONTH(JaanP1+9)=1),JaanP1+9,\"\"))","v":"2018-01-09"},{"$f":"IF(DAY(JaanP1)=1,IF(AND(YEAR(JaanP1+3)=Kalendriaasta,MONTH(JaanP1+3)=1),JaanP1+3,\"\"),IF(AND(YEAR(JaanP1+10)=Kalendriaasta,MONTH(JaanP1+10)=1),JaanP1+10,\"\"))","v":"2018-01-10"},{"$f":"IF(DAY(JaanP1)=1,IF(AND(YEAR(JaanP1+4)=Kalendriaasta,MONTH(JaanP1+4)=1),JaanP1+4,\"\"),IF(AND(YEAR(JaanP1+11)=Kalendriaasta,MONTH(JaanP1+11)=1),JaanP1+11,\"\"))","v":"2018-01-11"},{"$f":"IF(DAY(JaanP1)=1,IF(AND(YEAR(JaanP1+5)=Kalendriaasta,MONTH(JaanP1+5)=1),JaanP1+5,\"\"),IF(AND(YEAR(JaanP1+12)=Kalendriaasta,MONTH(JaanP1+12)=1),JaanP1+12,\"\"))","v":"2018-01-12"},{"$f":"IF(DAY(JaanP1)=1,IF(AND(YEAR(JaanP1+6)=Kalendriaasta,MONTH(JaanP1+6)=1),JaanP1+6,\"\"),IF(AND(YEAR(JaanP1+13)=Kalendriaasta,MONTH(JaanP1+13)=1),JaanP1+13,\"\"))","v":"2018-01-13"},{"$f":"IF(DAY(JaanP1)=1,IF(AND(YEAR(JaanP1+7)=Kalendriaasta,MONTH(JaanP1+7)=1),JaanP1+7,\"\"),IF(AND(YEAR(JaanP1+14)=Kalendriaasta,MONTH(JaanP1+14)=1),JaanP1+14,\"\"))","v":"2018-01-14"}]
[]
[null,{"$f":"IF(DAY(JaanP1)=1,IF(AND(YEAR(JaanP1+8)=Kalendriaasta,MONTH(JaanP1+8)=1),JaanP1+8,\"\"),IF(AND(YEAR(JaanP1+15)=Kalendriaasta,MONTH(JaanP1+15)=1),JaanP1+15,\"\"))","v":"2018-01-15"},{"$f":"IF(DAY(JaanP1)=1,IF(AND(YEAR(JaanP1+9)=Kalendriaasta,MONTH(JaanP1+9)=1),JaanP1+9,\"\"),IF(AND(YEAR(JaanP1+16)=Kalendriaasta,MONTH(JaanP1+16)=1),JaanP1+16,\"\"))","v":"2018-01-16"},{"$f":"IF(DAY(JaanP1)=1,IF(AND(YEAR(JaanP1+10)=Kalendriaasta,MONTH(JaanP1+10)=1),JaanP1+10,\"\"),IF(AND(YEAR(JaanP1+17)=Kalendriaasta,MONTH(JaanP1+17)=1),JaanP1+17,\"\"))","v":"2018-01-17"},{"$f":"IF(DAY(JaanP1)=1,IF(AND(YEAR(JaanP1+11)=Kalendriaasta,MONTH(JaanP1+11)=1),JaanP1+11,\"\"),IF(AND(YEAR(JaanP1+18)=Kalendriaasta,MONTH(JaanP1+18)=1),JaanP1+18,\"\"))","v":"2018-01-18"},{"$f":"IF(DAY(JaanP1)=1,IF(AND(YEAR(JaanP1+12)=Kalendriaasta,MONTH(JaanP1+12)=1),JaanP1+12,\"\"),IF(AND(YEAR(JaanP1+19)=Kalendriaasta,MONTH(JaanP1+19)=1),JaanP1+19,\"\"))","v":"2018-01-19"},{"$f":"IF(DAY(JaanP1)=1,IF(AND(YEAR(JaanP1+13)=Kalendriaasta,MONTH(JaanP1+13)=1),JaanP1+13,\"\"),IF(AND(YEAR(JaanP1+20)=Kalendriaasta,MONTH(JaanP1+20)=1),JaanP1+20,\"\"))","v":"2018-01-20"},{"$f":"IF(DAY(JaanP1)=1,IF(AND(YEAR(JaanP1+14)=Kalendriaasta,MONTH(JaanP1+14)=1),JaanP1+14,\"\"),IF(AND(YEAR(JaanP1+21)=Kalendriaasta,MONTH(JaanP1+21)=1),JaanP1+21,\"\"))","v":"2018-01-21"}]
[]
[null,{"$f":"IF(DAY(JaanP1)=1,IF(AND(YEAR(JaanP1+15)=Kalendriaasta,MONTH(JaanP1+15)=1),JaanP1+15,\"\"),IF(AND(YEAR(JaanP1+22)=Kalendriaasta,MONTH(JaanP1+22)=1),JaanP1+22,\"\"))","v":"2018-01-22"},{"$f":"IF(DAY(JaanP1)=1,IF(AND(YEAR(JaanP1+16)=Kalendriaasta,MONTH(JaanP1+16)=1),JaanP1+16,\"\"),IF(AND(YEAR(JaanP1+23)=Kalendriaasta,MONTH(JaanP1+23)=1),JaanP1+23,\"\"))","v":"2018-01-23"},{"$f":"IF(DAY(JaanP1)=1,IF(AND(YEAR(JaanP1+17)=Kalendriaasta,MONTH(JaanP1+17)=1),JaanP1+17,\"\"),IF(AND(YEAR(JaanP1+24)=Kalendriaasta,MONTH(JaanP1+24)=1),JaanP1+24,\"\"))","v":"2018-01-24"},{"$f":"IF(DAY(JaanP1)=1,IF(AND(YEAR(JaanP1+18)=Kalendriaasta,MONTH(JaanP1+18)=1),JaanP1+18,\"\"),IF(AND(YEAR(JaanP1+25)=Kalendriaasta,MONTH(JaanP1+25)=1),JaanP1+25,\"\"))","v":"2018-01-25"},{"$f":"IF(DAY(JaanP1)=1,IF(AND(YEAR(JaanP1+19)=Kalendriaasta,MONTH(JaanP1+19)=1),JaanP1+19,\"\"),IF(AND(YEAR(JaanP1+26)=Kalendriaasta,MONTH(JaanP1+26)=1),JaanP1+26,\"\"))","v":"2018-01-26"},{"$f":"IF(DAY(JaanP1)=1,IF(AND(YEAR(JaanP1+20)=Kalendriaasta,MONTH(JaanP1+20)=1),JaanP1+20,\"\"),IF(AND(YEAR(JaanP1+27)=Kalendriaasta,MONTH(JaanP1+27)=1),JaanP1+27,\"\"))","v":"2018-01-27"},{"$f":"IF(DAY(JaanP1)=1,IF(AND(YEAR(JaanP1+21)=Kalendriaasta,MONTH(JaanP1+21)=1),JaanP1+21,\"\"),IF(AND(YEAR(JaanP1+28)=Kalendriaasta,MONTH(JaanP1+28)=1),JaanP1+28,\"\"))","v":"2018-01-28"}]
[]
[null,{"$f":"IF(DAY(JaanP1)=1,IF(AND(YEAR(JaanP1+22)=Kalendriaasta,MONTH(JaanP1+22)=1),JaanP1+22,\"\"),IF(AND(YEAR(JaanP1+29)=Kalendriaasta,MONTH(JaanP1+29)=1),JaanP1+29,\"\"))","v":"2018-01-29"},{"$f":"IF(DAY(JaanP1)=1,IF(AND(YEAR(JaanP1+23)=Kalendriaasta,MONTH(JaanP1+23)=1),JaanP1+23,\"\"),IF(AND(YEAR(JaanP1+30)=Kalendriaasta,MONTH(JaanP1+30)=1),JaanP1+30,\"\"))","v":"2018-01-30"},{"$f":"IF(DAY(JaanP1)=1,IF(AND(YEAR(JaanP1+24)=Kalendriaasta,MONTH(JaanP1+24)=1),JaanP1+24,\"\"),IF(AND(YEAR(JaanP1+31)=Kalendriaasta,MONTH(JaanP1+31)=1),JaanP1+31,\"\"))","v":"2018-01-31"},{"$f":"IF(DAY(JaanP1)=1,IF(AND(YEAR(JaanP1+25)=Kalendriaasta,MONTH(JaanP1+25)=1),JaanP1+25,\"\"),IF(AND(YEAR(JaanP1+32)=Kalendriaasta,MONTH(JaanP1+32)=1),JaanP1+32,\"\"))","v":""},{"$f":"IF(DAY(JaanP1)=1,IF(AND(YEAR(JaanP1+26)=Kalendriaasta,MONTH(JaanP1+26)=1),JaanP1+26,\"\"),IF(AND(YEAR(JaanP1+33)=Kalendriaasta,MONTH(JaanP1+33)=1),JaanP1+33,\"\"))","v":""},{"$f":"IF(DAY(JaanP1)=1,IF(AND(YEAR(JaanP1+27)=Kalendriaasta,MONTH(JaanP1+27)=1),JaanP1+27,\"\"),IF(AND(YEAR(JaanP1+34)=Kalendriaasta,MONTH(JaanP1+34)=1),JaanP1+34,\"\"))","v":""},{"$f":"IF(DAY(JaanP1)=1,IF(AND(YEAR(JaanP1+28)=Kalendriaasta,MONTH(JaanP1+28)=1),JaanP1+28,\"\"),IF(AND(YEAR(JaanP1+35)=Kalendriaasta,MONTH(JaanP1+35)=1),JaanP1+35,\"\"))","v":""}]
[]
[null,{"$f":"IF(DAY(JaanP1)=1,IF(AND(YEAR(JaanP1+29)=Kalendriaasta,MONTH(JaanP1+29)=1),JaanP1+29,\"\"),IF(AND(YEAR(JaanP1+36)=Kalendriaasta,MONTH(JaanP1+36)=1),JaanP1+36,\"\"))","v":""},{"$f":"IF(DAY(JaanP1)=1,IF(AND(YEAR(JaanP1+30)=Kalendriaasta,MONTH(JaanP1+30)=1),JaanP1+30,\"\"),IF(AND(YEAR(JaanP1+37)=Kalendriaasta,MONTH(JaanP1+37)=1),JaanP1+37,\"\"))","v":""},"MÄRKMED:"]

{"sheet":"Veebr","index":1,"n_rows":15,"n_cols":8,"rows_kept":15,"merged":[[2,1,2,5],[14,3,14,7],[15,3,15,7]]}
[]
[]
[null,{"$f":"UPPER(TEXT(DATE(Kalendriaasta,2,1),\"mmmm yyyy\"))","v":"VEEBRUAR 2018"}]
[null,"ESMASPÄEV","TEISIPÄEV","KOLMAPÄEV","NELJAPÄEV","REEDE","LAUPÄEV","PÜHAPÄEV"]
[null,{"$f":"IF(DAY(VeebrP1)=1,\"\",IF(AND(YEAR(VeebrP1+1)=Kalendriaasta,MONTH(VeebrP1+1)=2),VeebrP1+1,\"\"))","v":""},{"$f":"IF(DAY(VeebrP1)=1,\"\",IF(AND(YEAR(VeebrP1+2)=Kalendriaasta,MONTH(VeebrP1+2)=2),VeebrP1+2,\"\"))","v":""},{"$f":"IF(DAY(VeebrP1)=1,\"\",IF(AND(YEAR(VeebrP1+3)=Kalendriaasta,MONTH(VeebrP1+3)=2),VeebrP1+3,\"\"))","v":""},{"$f":"IF(DAY(VeebrP1)=1,\"\",IF(AND(YEAR(VeebrP1+4)=Kalendriaasta,MONTH(VeebrP1+4)=2),VeebrP1+4,\"\"))","v":"2018-02-01"},{"$f":"IF(DAY(VeebrP1)=1,\"\",IF(AND(YEAR(VeebrP1+5)=Kalendriaasta,MONTH(VeebrP1+5)=2),VeebrP1+5,\"\"))","v":"2018-02-02"},{"$f":"IF(DAY(VeebrP1)=1,\"\",IF(AND(YEAR(VeebrP1+6)=Kalendriaasta,MONTH(VeebrP1+6)=2),VeebrP1+6,\"\"))","v":"2018-02-03"},{"$f":"IF(DAY(VeebrP1)=1,IF(AND(YEAR(VeebrP1)=Kalendriaasta,MONTH(VeebrP1)=2),VeebrP1,\"\"),IF(AND(YEAR(VeebrP1+7)=Kalendriaasta,MONTH(VeebrP1+7)=2),VeebrP1+7,\"\"))","v":"2018-02-04"}]
[]
[null,{"$f":"IF(DAY(VeebrP1)=1,IF(AND(YEAR(VeebrP1+1)=Kalendriaasta,MONTH(VeebrP1+1)=2),VeebrP1+1,\"\"),IF(AND(YEAR(VeebrP1+8)=Kalendriaasta,MONTH(VeebrP1+8)=2),VeebrP1+8,\"\"))","v":"2018-02-05"},{"$f":"IF(DAY(VeebrP1)=1,IF(AND(YEAR(VeebrP1+2)=Kalendriaasta,MONTH(VeebrP1+2)=2),VeebrP1+2,\"\"),IF(AND(YEAR(VeebrP1+9)=Kalendriaasta,MONTH(VeebrP1+9)=2),VeebrP1+9,\"\"))","v":"2018-02-06"},{"$f":"IF(DAY(VeebrP1)=1,IF(AND(YEAR(VeebrP1+3)=Kalendriaasta,MONTH(VeebrP1+3)=2),VeebrP1+3,\"\"),IF(AND(YEAR(VeebrP1+10)=Kalendriaasta,MONTH(VeebrP1+10)=2),VeebrP1+10,\"\"))","v":"2018-02-07"},{"$f":"IF(DAY(VeebrP1)=1,IF(AND(YEAR(VeebrP1+4)=Kalendriaasta,MONTH(VeebrP1+4)=2),VeebrP1+4,\"\"),IF(AND(YEAR(VeebrP1+11)=Kalendriaasta,MONTH(VeebrP1+11)=2),VeebrP1+11,\"\"))","v":"2018-02-08"},{"$f":"IF(DAY(VeebrP1)=1,IF(AND(YEAR(VeebrP1+5)=Kalendriaasta,MONTH(VeebrP1+5)=2),VeebrP1+5,\"\"),IF(AND(YEAR(VeebrP1+12)=Kalendriaasta,MONTH(VeebrP1+12)=2),VeebrP1+12,\"\"))","v":"2018-02-09"},{"$f":"IF(DAY(VeebrP1)=1,IF(AND(YEAR(VeebrP1+6)=Kalendriaasta,MONTH(VeebrP1+6)=2),VeebrP1+6,\"\"),IF(AND(YEAR(VeebrP1+13)=Kalendriaasta,MONTH(VeebrP1+13)=2),VeebrP1+13,\"\"))","v":"2018-02-10"},{"$f":"IF(DAY(VeebrP1)=1,IF(AND(YEAR(VeebrP1+7)=Kalendriaasta,MONTH(VeebrP1+7)=2),VeebrP1+7,\"\"),IF(AND(YEAR(VeebrP1+14)=Kalendriaasta,MONTH(VeebrP1+14)=2),VeebrP1+14,\"\"))","v":"2018-02-11"}]
[]
[null,{"$f":"IF(DAY(VeebrP1)=1,IF(AND(YEAR(VeebrP1+8)=Kalendriaasta,MONTH(VeebrP1+8)=2),VeebrP1+8,\"\"),IF(AND(YEAR(VeebrP1+15)=Kalendriaasta,MONTH(VeebrP1+15)=2),VeebrP1+15,\"\"))","v":"2018-02-12"},{"$f":"IF(DAY(VeebrP1)=1,IF(AND(YEAR(VeebrP1+9)=Kalendriaasta,MONTH(VeebrP1+9)=2),VeebrP1+9,\"\"),IF(AND(YEAR(VeebrP1+16)=Kalendriaasta,MONTH(VeebrP1+16)=2),VeebrP1+16,\"\"))","v":"2018-02-13"},{"$f":"IF(DAY(VeebrP1)=1,IF(AND(YEAR(VeebrP1+10)=Kalendriaasta,MONTH(VeebrP1+10)=2),VeebrP1+10,\"\"),IF(AND(YEAR(VeebrP1+17)=Kalendriaasta,MONTH(VeebrP1+17)=2),VeebrP1+17,\"\"))","v":"2018-02-14"},{"$f":"IF(DAY(VeebrP1)=1,IF(AND(YEAR(VeebrP1+11)=Kalendriaasta,MONTH(VeebrP1+11)=2),VeebrP1+11,\"\"),IF(AND(YEAR(VeebrP1+18)=Kalendriaasta,MONTH(VeebrP1+18)=2),VeebrP1+18,\"\"))","v":"2018-02-15"},{"$f":"IF(DAY(VeebrP1)=1,IF(AND(YEAR(VeebrP1+12)=Kalendriaasta,MONTH(VeebrP1+12)=2),VeebrP1+12,\"\"),IF(AND(YEAR(VeebrP1+19)=Kalendriaasta,MONTH(VeebrP1+19)=2),VeebrP1+19,\"\"))","v":"2018-02-16"},{"$f":"IF(DAY(VeebrP1)=1,IF(AND(YEAR(VeebrP1+13)=Kalendriaasta,MONTH(VeebrP1+13)=2),VeebrP1+13,\"\"),IF(AND(YEAR(VeebrP1+20)=Kalendriaasta,MONTH(VeebrP1+20)=2),VeebrP1+20,\"\"))","v":"2018-02-17"},{"$f":"IF(DAY(VeebrP1)=1,IF(AND(YEAR(VeebrP1+14)=Kalendriaasta,MONTH(VeebrP1+14)=2),VeebrP1+14,\"\"),IF(AND(YEAR(VeebrP1+21)=Kalendriaasta,MONTH(VeebrP1+21)=2),VeebrP1+21,\"\"))","v":"2018-02-18"}]
[]
[null,{"$f":"IF(DAY(VeebrP1)=1,IF(AND(YEAR(VeebrP1+15)=Kalendriaasta,MONTH(VeebrP1+15)=2),VeebrP1+15,\"\"),IF(AND(YEAR(VeebrP1+22)=Kalendriaasta,MONTH(VeebrP1+22)=2),VeebrP1+22,\"\"))","v":"2018-02-19"},{"$f":"IF(DAY(VeebrP1)=1,IF(AND(YEAR(VeebrP1+16)=Kalendriaasta,MONTH(VeebrP1+16)=2),VeebrP1+16,\"\"),IF(AND(YEAR(VeebrP1+23)=Kalendriaasta,MONTH(VeebrP1+23)=2),VeebrP1+23,\"\"))","v":"2018-02-20"},{"$f":"IF(DAY(VeebrP1)=1,IF(AND(YEAR(VeebrP1+17)=Kalendriaasta,MONTH(VeebrP1+17)=2),VeebrP1+17,\"\"),IF(AND(YEAR(VeebrP1+24)=Kalendriaasta,MONTH(VeebrP1+24)=2),VeebrP1+24,\"\"))","v":"2018-02-21"},{"$f":"IF(DAY(VeebrP1)=1,IF(AND(YEAR(VeebrP1+18)=Kalendriaasta,MONTH(VeebrP1+18)=2),VeebrP1+18,\"\"),IF(AND(YEAR(VeebrP1+25)=Kalendriaasta,MONTH(VeebrP1+25)=2),VeebrP1+25,\"\"))","v":"2018-02-22"},{"$f":"IF(DAY(VeebrP1)=1,IF(AND(YEAR(VeebrP1+19)=Kalendriaasta,MONTH(VeebrP1+19)=2),VeebrP1+19,\"\"),IF(AND(YEAR(VeebrP1+26)=Kalendriaasta,MONTH(VeebrP1+26)=2),VeebrP1+26,\"\"))","v":"2018-02-23"},{"$f":"IF(DAY(VeebrP1)=1,IF(AND(YEAR(VeebrP1+20)=Kalendriaasta,MONTH(VeebrP1+20)=2),VeebrP1+20,\"\"),IF(AND(YEAR(VeebrP1+27)=Kalendriaasta,MONTH(VeebrP1+27)=2),VeebrP1+27,\"\"))","v":"2018-02-24"},{"$f":"IF(DAY(VeebrP1)=1,IF(AND(YEAR(VeebrP1+21)=Kalendriaasta,MONTH(VeebrP1+21)=2),VeebrP1+21,\"\"),IF(AND(YEAR(VeebrP1+28)=Kalendriaasta,MONTH(VeebrP1+28)=2),VeebrP1+28,\"\"))","v":"2018-02-25"}]
[]
[null,{"$f":"IF(DAY(VeebrP1)=1,IF(AND(YEAR(VeebrP1+22)=Kalendriaasta,MONTH(VeebrP1+22)=2),VeebrP1+22,\"\"),IF(AND(YEAR(VeebrP1+29)=Kalendriaasta,MONTH(VeebrP1+29)=2),VeebrP1+29,\"\"))","v":"2018-02-26"},{"$f":"IF(DAY(VeebrP1)=1,IF(AND(YEAR(VeebrP1+23)=Kalendriaasta,MONTH(VeebrP1+23)=2),VeebrP1+23,\"\"),IF(AND(YEAR(VeebrP1+30)=Kalendriaasta,MONTH(VeebrP1+30)=2),VeebrP1+30,\"\"))","v":"2018-02-27"},{"$f":"IF(DAY(VeebrP1)=1,IF(AND(YEAR(VeebrP1+24)=Kalendriaasta,MONTH(VeebrP1+24)=2),VeebrP1+24,\"\"),IF(AND(YEAR(VeebrP1+31)=Kalendriaasta,MONTH(VeebrP1+31)=2),VeebrP1+31,\"\"))","v":"2018-02-28"},{"$f":"IF(DAY(VeebrP1)=1,IF(AND(YEAR(VeebrP1+25)=Kalendriaasta,MONTH(VeebrP1+25)=2),VeebrP1+25,\"\"),IF(AND(YEAR(VeebrP1+32)=Kalendriaasta,MONTH(VeebrP1+32)=2),VeebrP1+32,\"\"))","v":""},{"$f":"IF(DAY(VeebrP1)=1,IF(AND(YEAR(VeebrP1+26)=Kalendriaasta,MONTH(VeebrP1+26)=2),VeebrP1+26,\"\"),IF(AND(YEAR(VeebrP1+33)=Kalendriaasta,MONTH(VeebrP1+33)=2),VeebrP1+33,\"\"))","v":""},{"$f":"IF(DAY(VeebrP1)=1,IF(AND(YEAR(VeebrP1+27)=Kalendriaasta,MONTH(VeebrP1+27)=2),VeebrP1+27,\"\"),IF(AND(YEAR(VeebrP1+34)=Kalendriaasta,MONTH(VeebrP1+34)=2),VeebrP1+34,\"\"))","v":""},{"$f":"IF(DAY(VeebrP1)=1,IF(AND(YEAR(VeebrP1+28)=Kalendriaasta,MONTH(VeebrP1+28)=2),VeebrP1+28,\"\"),IF(AND(YEAR(VeebrP1+35)=Kalendriaasta,MONTH(VeebrP1+35)=2),VeebrP1+35,\"\"))","v":""}]
[]
[null,{"$f":"IF(DAY(VeebrP1)=1,IF(AND(YEAR(VeebrP1+29)=Kalendriaasta,MONTH(VeebrP1+29)=2),VeebrP1+29,\"\"),IF(AND(YEAR(VeebrP1+36)=Kalendriaasta,MONTH(VeebrP1+36)=2),VeebrP1+36,\"\"))","v":""},{"$f":"IF(DAY(VeebrP1)=1,IF(AND(YEAR(VeebrP1+30)=Kalendriaasta,MONTH(VeebrP1+30)=2),VeebrP1+30,\"\"),IF(AND(YEAR(VeebrP1+37)=Kalendriaasta,MONTH(VeebrP1+37)=2),VeebrP1+37,\"\"))","v":""},"MÄRKMED:"]

{"sheet":"Märts","index":2,"n_rows":15,"n_cols":8,"rows_kept":15,"merged":[[2,1,2,5],[14,3,14,7],[15,3,15,7]]}
[]
[]
[null,{"$f":"UPPER(TEXT(DATE(Kalendriaasta,3,1),\"mmmm yyyy\"))","v":"MÄRTS 2018"}]
[null,"ESMASPÄEV","TEISIPÄEV","KOLMAPÄEV","NELJAPÄEV","REEDE","LAUPÄEV","PÜHAPÄEV"]
[null,{"$f":"IF(DAY(MärtsP1)=1,\"\",IF(AND(YEAR(MärtsP1+1)=Kalendriaasta,MONTH(MärtsP1+1)=3),MärtsP1+1,\"\"))","v":""},{"$f":"IF(DAY(MärtsP1)=1,\"\",IF(AND(YEAR(MärtsP1+2)=Kalendriaasta,MONTH(MärtsP1+2)=3),MärtsP1+2,\"\"))","v":""},{"$f":"IF(DAY(MärtsP1)=1,\"\",IF(AND(YEAR(MärtsP1+3)=Kalendriaasta,MONTH(MärtsP1+3)=3),MärtsP1+3,\"\"))","v":""},{"$f":"IF(DAY(MärtsP1)=1,\"\",IF(AND(YEAR(MärtsP1+4)=Kalendriaasta,MONTH(MärtsP1+4)=3),MärtsP1+4,\"\"))","v":"2018-03-01"},{"$f":"IF(DAY(MärtsP1)=1,\"\",IF(AND(YEAR(MärtsP1+5)=Kalendriaasta,MONTH(MärtsP1+5)=3),MärtsP1+5,\"\"))","v":"2018-03-02"},{"$f":"IF(DAY(MärtsP1)=1,\"\",IF(AND(YEAR(MärtsP1+6)=Kalendriaasta,MONTH(MärtsP1+6)=3),MärtsP1+6,\"\"))","v":"2018-03-03"},{"$f":"IF(DAY(MärtsP1)=1,IF(AND(YEAR(MärtsP1)=Kalendriaasta,MONTH(MärtsP1)=3),MärtsP1,\"\"),IF(AND(YEAR(MärtsP1+7)=Kalendriaasta,MONTH(MärtsP1+7)=3),MärtsP1+7,\"\"))","v":"2018-03-04"}]
[]
[null,{"$f":"IF(DAY(MärtsP1)=1,IF(AND(YEAR(MärtsP1+1)=Kalendriaasta,MONTH(MärtsP1+1)=3),MärtsP1+1,\"\"),IF(AND(YEAR(MärtsP1+8)=Kalendriaasta,MONTH(MärtsP1+8)=3),MärtsP1+8,\"\"))","v":"2018-03-05"},{"$f":"IF(DAY(MärtsP1)=1,IF(AND(YEAR(MärtsP1+2)=Kalendriaasta,MONTH(MärtsP1+2)=3),MärtsP1+2,\"\"),IF(AND(YEAR(MärtsP1+9)=Kalendriaasta,MONTH(MärtsP1+9)=3),MärtsP1+9,\"\"))","v":"2018-03-06"},{"$f":"IF(DAY(MärtsP1)=1,IF(AND(YEAR(MärtsP1+3)=Kalendriaasta,MONTH(MärtsP1+3)=3),MärtsP1+3,\"\"),IF(AND(YEAR(MärtsP1+10)=Kalendriaasta,MONTH(MärtsP1+10)=3),MärtsP1+10,\"\"))","v":"2018-03-07"},{"$f":"IF(DAY(MärtsP1)=1,IF(AND(YEAR(MärtsP1+4)=Kalendriaasta,MONTH(MärtsP1+4)=3),MärtsP1+4,\"\"),IF(AND(YEAR(MärtsP1+11)=Kalendriaasta,MONTH(MärtsP1+11)=3),MärtsP1+11,\"\"))","v":"2018-03-08"},{"$f":"IF(DAY(MärtsP1)=1,IF(AND(YEAR(MärtsP1+5)=Kalendriaasta,MONTH(MärtsP1+5)=3),MärtsP1+5,\"\"),IF(AND(YEAR(MärtsP1+12)=Kalendriaasta,MONTH(MärtsP1+12)=3),MärtsP1+12,\"\"))","v":"2018-03-09"},{"$f":"IF(DAY(MärtsP1)=1,IF(AND(YEAR(MärtsP1+6)=Kalendriaasta,MONTH(MärtsP1+6)=3),MärtsP1+6,\"\"),IF(AND(YEAR(MärtsP1+13)=Kalendriaasta,MONTH(MärtsP1+13)=3),MärtsP1+13,\"\"))","v":"2018-03-10"},{"$f":"IF(DAY(MärtsP1)=1,IF(AND(YEAR(MärtsP1+7)=Kalendriaasta,MONTH(MärtsP1+7)=3),MärtsP1+7,\"\"),IF(AND(YEAR(MärtsP1+14)=Kalendriaasta,MONTH(MärtsP1+14)=3),MärtsP1+14,\"\"))","v":"2018-03-11"}]
[]
[null,{"$f":"IF(DAY(MärtsP1)=1,IF(AND(YEAR(MärtsP1+8)=Kalendriaasta,MONTH(MärtsP1+8)=3),MärtsP1+8,\"\"),IF(AND(YEAR(MärtsP1+15)=Kalendriaasta,MONTH(MärtsP1+15)=3),MärtsP1+15,\"\"))","v":"2018-03-12"},{"$f":"IF(DAY(MärtsP1)=1,IF(AND(YEAR(MärtsP1+9)=Kalendriaasta,MONTH(MärtsP1+9)=3),MärtsP1+9,\"\"),IF(AND(YEAR(MärtsP1+16)=Kalendriaasta,MONTH(MärtsP1+16)=3),MärtsP1+16,\"\"))","v":"2018-03-13"},{"$f":"IF(DAY(MärtsP1)=1,IF(AND(YEAR(MärtsP1+10)=Kalendriaasta,MONTH(MärtsP1+10)=3),MärtsP1+10,\"\"),IF(AND(YEAR(MärtsP1+17)=Kalendriaasta,MONTH(MärtsP1+17)=3),MärtsP1+17,\"\"))","v":"2018-03-14"},{"$f":"IF(DAY(MärtsP1)=1,IF(AND(YEAR(MärtsP1+11)=Kalendriaasta,MONTH(MärtsP1+11)=3),MärtsP1+11,\"\"),IF(AND(YEAR(MärtsP1+18)=Kalendriaasta,MONTH(MärtsP1+18)=3),MärtsP1+18,\"\"))","v":"2018-03-15"},{"$f":"IF(DAY(MärtsP1)=1,IF(AND(YEAR(MärtsP1+12)=Kalendriaasta,MONTH(MärtsP1+12)=3),MärtsP1+12,\"\"),IF(AND(YEAR(MärtsP1+19)=Kalendriaasta,MONTH(MärtsP1+19)=3),MärtsP1+19,\"\"))","v":"2018-03-16"},{"$f":"IF(DAY(MärtsP1)=1,IF(AND(YEAR(MärtsP1+13)=Kalendriaasta,MONTH(MärtsP1+13)=3),MärtsP1+13,\"\"),IF(AND(YEAR(MärtsP1+20)=Kalendriaasta,MONTH(MärtsP1+20)=3),MärtsP1+20,\"\"))","v":"2018-03-17"},{"$f":"IF(DAY(MärtsP1)=1,IF(AND(YEAR(MärtsP1+14)=Kalendriaasta,MONTH(MärtsP1+14)=3),MärtsP1+14,\"\"),IF(AND(YEAR(MärtsP1+21)=Kalendriaasta,MONTH(MärtsP1+21)=3),MärtsP1+21,\"\"))","v":"2018-03-18"}]
[]
[null,{"$f":"IF(DAY(MärtsP1)=1,IF(AND(YEAR(MärtsP1+15)=Kalendriaasta,MONTH(MärtsP1+15)=3),MärtsP1+15,\"\"),IF(AND(YEAR(MärtsP1+22)=Kalendriaasta,MONTH(MärtsP1+22)=3),MärtsP1+22,\"\"))","v":"2018-03-19"},{"$f":"IF(DAY(MärtsP1)=1,IF(AND(YEAR(MärtsP1+16)=Kalendriaasta,MONTH(MärtsP1+16)=3),MärtsP1+16,\"\"),IF(AND(YEAR(MärtsP1+23)=Kalendriaasta,MONTH(MärtsP1+23)=3),MärtsP1+23,\"\"))","v":"2018-03-20"},{"$f":"IF(DAY(MärtsP1)=1,IF(AND(YEAR(MärtsP1+17)=Kalendriaasta,MONTH(MärtsP1+17)=3),MärtsP1+17,\"\"),IF(AND(YEAR(MärtsP1+24)=Kalendriaasta,MONTH(MärtsP1+24)=3),MärtsP1+24,\"\"))","v":"2018-03-21"},{"$f":"IF(DAY(MärtsP1)=1,IF(AND(YEAR(MärtsP1+18)=Kalendriaasta,MONTH(MärtsP1+18)=3),MärtsP1+18,\"\"),IF(AND(YEAR(MärtsP1+25)=Kalendriaasta,MONTH(MärtsP1+25)=3),MärtsP1+25,\"\"))","v":"2018-03-22"},{"$f":"IF(DAY(MärtsP1)=1,IF(AND(YEAR(MärtsP1+19)=Kalendriaasta,MONTH(MärtsP1+19)=3),MärtsP1+19,\"\"),IF(AND(YEAR(MärtsP1+26)=Kalendriaasta,MONTH(MärtsP1+26)=3),MärtsP1+26,\"\"))","v":"2018-03-23"},{"$f":"IF(DAY(MärtsP1)=1,IF(AND(YEAR(MärtsP1+20)=Kalendriaasta,MONTH(MärtsP1+20)=3),MärtsP1+20,\"\"),IF(AND(YEAR(MärtsP1+27)=Kalendriaasta,MONTH(MärtsP1+27)=3),MärtsP1+27,\"\"))","v":"2018-03-24"},{"$f":"IF(DAY(MärtsP1)=1,IF(AND(YEAR(MärtsP1+21)=Kalendriaasta,MONTH(MärtsP1+21)=3),MärtsP1+21,\"\"),IF(AND(YEAR(MärtsP1+28)=Kalendriaasta,MONTH(MärtsP1+28)=3),MärtsP1+28,\"\"))","v":"2018-03-25"}]
[]
[null,{"$f":"IF(DAY(MärtsP1)=1,IF(AND(YEAR(MärtsP1+22)=Kalendriaasta,MONTH(MärtsP1+22)=3),MärtsP1+22,\"\"),IF(AND(YEAR(MärtsP1+29)=Kalendriaasta,MONTH(MärtsP1+29)=3),MärtsP1+29,\"\"))","v":"2018-03-26"},{"$f":"IF(DAY(MärtsP1)=1,IF(AND(YEAR(MärtsP1+23)=Kalendriaasta,MONTH(MärtsP1+23)=3),MärtsP1+23,\"\"),IF(AND(YEAR(MärtsP1+30)=Kalendriaasta,MONTH(MärtsP1+30)=3),MärtsP1+30,\"\"))","v":"2018-03-27"},{"$f":"IF(DAY(MärtsP1)=1,IF(AND(YEAR(MärtsP1+24)=Kalendriaasta,MONTH(MärtsP1+24)=3),MärtsP1+24,\"\"),IF(AND(YEAR(MärtsP1+31)=Kalendriaasta,MONTH(MärtsP1+31)=3),MärtsP1+31,\"\"))","v":"2018-03-28"},{"$f":"IF(DAY(MärtsP1)=1,IF(AND(YEAR(MärtsP1+25)=Kalendriaasta,MONTH(MärtsP1+25)=3),MärtsP1+25,\"\"),IF(AND(YEAR(MärtsP1+32)=Kalendriaasta,MONTH(MärtsP1+32)=3),MärtsP1+32,\"\"))","v":"2018-03-29"},{"$f":"IF(DAY(MärtsP1)=1,IF(AND(YEAR(MärtsP1+26)=Kalendriaasta,MONTH(MärtsP1+26)=3),MärtsP1+26,\"\"),IF(AND(YEAR(MärtsP1+33)=Kalendriaasta,MONTH(MärtsP1+33)=3),MärtsP1+33,\"\"))","v":"2018-03-30"},{"$f":"IF(DAY(MärtsP1)=1,IF(AND(YEAR(MärtsP1+27)=Kalendriaasta,MONTH(MärtsP1+27)=3),MärtsP1+27,\"\"),IF(AND(YEAR(MärtsP1+34)=Kalendriaasta,MONTH(MärtsP1+34)=3),MärtsP1+34,\"\"))","v":"2018-03-31"},{"$f":"IF(DAY(MärtsP1)=1,IF(AND(YEAR(MärtsP1+28)=Kalendriaasta,MONTH(MärtsP1+28)=3),MärtsP1+28,\"\"),IF(AND(YEAR(MärtsP1+35)=Kalendriaasta,MONTH(MärtsP1+35)=3),MärtsP1+35,\"\"))","v":""}]
[]
[null,{"$f":"IF(DAY(MärtsP1)=1,IF(AND(YEAR(MärtsP1+29)=Kalendriaasta,MONTH(MärtsP1+29)=3),MärtsP1+29,\"\"),IF(AND(YEAR(MärtsP1+36)=Kalendriaasta,MONTH(MärtsP1+36)=3),MärtsP1+36,\"\"))","v":""},{"$f":"IF(DAY(MärtsP1)=1,IF(AND(YEAR(MärtsP1+30)=Kalendriaasta,MONTH(MärtsP1+30)=3),MärtsP1+30,\"\"),IF(AND(YEAR(MärtsP1+37)=Kalendriaasta,MONTH(MärtsP1+37)=3),MärtsP1+37,\"\"))","v":""},"MÄRKMED:"]

{"sheet":"Apr","index":3,"n_rows":15,"n_cols":8,"rows_kept":15,"merged":[[2,1,2,5],[14,3,14,7],[15,3,15,7]]}
[]
[]
[null,{"$f":"UPPER(TEXT(DATE(Kalendriaasta,4,1),\"mmmm yyyy\"))","v":"APRILL 2018"}]
[null,"ESMASPÄEV","TEISIPÄEV","KOLMAPÄEV","NELJAPÄEV","REEDE","LAUPÄEV","PÜHAPÄEV"]
[null,{"$f":"IF(DAY(AprP1)=1,\"\",IF(AND(YEAR(AprP1+1)=Kalendriaasta,MONTH(AprP1+1)=4),AprP1+1,\"\"))","v":""},{"$f":"IF(DAY(AprP1)=1,\"\",IF(AND(YEAR(AprP1+2)=Kalendriaasta,MONTH(AprP1+2)=4),AprP1+2,\"\"))","v":""},{"$f":"IF(DAY(AprP1)=1,\"\",IF(AND(YEAR(AprP1+3)=Kalendriaasta,MONTH(AprP1+3)=4),AprP1+3,\"\"))","v":""},{"$f":"IF(DAY(AprP1)=1,\"\",IF(AND(YEAR(AprP1+4)=Kalendriaasta,MONTH(AprP1+4)=4),AprP1+4,\"\"))","v":""},{"$f":"IF(DAY(AprP1)=1,\"\",IF(AND(YEAR(AprP1+5)=Kalendriaasta,MONTH(AprP1+5)=4),AprP1+5,\"\"))","v":""},{"$f":"IF(DAY(AprP1)=1,\"\",IF(AND(YEAR(AprP1+6)=Kalendriaasta,MONTH(AprP1+6)=4),AprP1+6,\"\"))","v":""},{"$f":"IF(DAY(AprP1)=1,IF(AND(YEAR(AprP1)=Kalendriaasta,MONTH(AprP1)=4),AprP1,\"\"),IF(AND(YEAR(AprP1+7)=Kalendriaasta,MONTH(AprP1+7)=4),AprP1+7,\"\"))","v":"2018-04-01"}]
[]
[null,{"$f":"IF(DAY(AprP1)=1,IF(AND(YEAR(AprP1+1)=Kalendriaasta,MONTH(AprP1+1)=4),AprP1+1,\"\"),IF(AND(YEAR(AprP1+8)=Kalendriaasta,MONTH(AprP1+8)=4),AprP1+8,\"\"))","v":"2018-04-02"},{"$f":"IF(DAY(AprP1)=1,IF(AND(YEAR(AprP1+2)=Kalendriaasta,MONTH(AprP1+2)=4),AprP1+2,\"\"),IF(AND(YEAR(AprP1+9)=Kalendriaasta,MONTH(AprP1+9)=4),AprP1+9,\"\"))","v":"2018-04-03"},{"$f":"IF(DAY(AprP1)=1,IF(AND(YEAR(AprP1+3)=Kalendriaasta,MONTH(AprP1+3)=4),AprP1+3,\"\"),IF(AND(YEAR(AprP1+10)=Kalendriaasta,MONTH(AprP1+10)=4),AprP1+10,\"\"))","v":"2018-04-04"},{"$f":"IF(DAY(AprP1)=1,IF(AND(YEAR(AprP1+4)=Kalendriaasta,MONTH(AprP1+4)=4),AprP1+4,\"\"),IF(AND(YEAR(AprP1+11)=Kalendriaasta,MONTH(AprP1+11)=4),AprP1+11,\"\"))","v":"2018-04-05"},{"$f":"IF(DAY(AprP1)=1,IF(AND(YEAR(AprP1+5)=Kalendriaasta,MONTH(AprP1+5)=4),AprP1+5,\"\"),IF(AND(YEAR(AprP1+12)=Kalendriaasta,MONTH(AprP1+12)=4),AprP1+12,\"\"))","v":"2018-04-06"},{"$f":"IF(DAY(AprP1)=1,IF(AND(YEAR(AprP1+6)=Kalendriaasta,MONTH(AprP1+6)=4),AprP1+6,\"\"),IF(AND(YEAR(AprP1+13)=Kalendriaasta,MONTH(AprP1+13)=4),AprP1+13,\"\"))","v":"2018-04-07"},{"$f":"IF(DAY(AprP1)=1,IF(AND(YEAR(AprP1+7)=Kalendriaasta,MONTH(AprP1+7)=4),AprP1+7,\"\"),IF(AND(YEAR(AprP1+14)=Kalendriaasta,MONTH(AprP1+14)=4),AprP1+14,\"\"))","v":"2018-04-08"}]
[]
[null,{"$f":"IF(DAY(AprP1)=1,IF(AND(YEAR(AprP1+8)=Kalendriaasta,MONTH(AprP1+8)=4),AprP1+8,\"\"),IF(AND(YEAR(AprP1+15)=Kalendriaasta,MONTH(AprP1+15)=4),AprP1+15,\"\"))","v":"2018-04-09"},{"$f":"IF(DAY(AprP1)=1,IF(AND(YEAR(AprP1+9)=Kalendriaasta,MONTH(AprP1+9)=4),AprP1+9,\"\"),IF(AND(YEAR(AprP1+16)=Kalendriaasta,MONTH(AprP1+16)=4),AprP1+16,\"\"))","v":"2018-04-10"},{"$f":"IF(DAY(AprP1)=1,IF(AND(YEAR(AprP1+10)=Kalendriaasta,MONTH(AprP1+10)=4),AprP1+10,\"\"),IF(AND(YEAR(AprP1+17)=Kalendriaasta,MONTH(AprP1+17)=4),AprP1+17,\"\"))","v":"2018-04-11"},{"$f":"IF(DAY(AprP1)=1,IF(AND(YEAR(AprP1+11)=Kalendriaasta,MONTH(AprP1+11)=4),AprP1+11,\"\"),IF(AND(YEAR(AprP1+18)=Kalendriaasta,MONTH(AprP1+18)=4),AprP1+18,\"\"))","v":"2018-04-12"},{"$f":"IF(DAY(AprP1)=1,IF(AND(YEAR(AprP1+12)=Kalendriaasta,MONTH(AprP1+12)=4),AprP1+12,\"\"),IF(AND(YEAR(AprP1+19)=Kalendriaasta,MONTH(AprP1+19)=4),AprP1+19,\"\"))","v":"2018-04-13"},{"$f":"IF(DAY(AprP1)=1,IF(AND(YEAR(AprP1+13)=Kalendriaasta,MONTH(AprP1+13)=4),AprP1+13,\"\"),IF(AND(YEAR(AprP1+20)=Kalendriaasta,MONTH(AprP1+20)=4),AprP1+20,\"\"))","v":"2018-04-14"},{"$f":"IF(DAY(AprP1)=1,IF(AND(YEAR(AprP1+14)=Kalendriaasta,MONTH(AprP1+14)=4),AprP1+14,\"\"),IF(AND(YEAR(AprP1+21)=Kalendriaasta,MONTH(AprP1+21)=4),AprP1+21,\"\"))","v":"2018-04-15"}]
[]
[null,{"$f":"IF(DAY(AprP1)=1,IF(AND(YEAR(AprP1+15)=Kalendriaasta,MONTH(AprP1+15)=4),AprP1+15,\"\"),IF(AND(YEAR(AprP1+22)=Kalendriaasta,MONTH(AprP1+22)=4),AprP1+22,\"\"))","v":"2018-04-16"},{"$f":"IF(DAY(AprP1)=1,IF(AND(YEAR(AprP1+16)=Kalendriaasta,MONTH(AprP1+16)=4),AprP1+16,\"\"),IF(AND(YEAR(AprP1+23)=Kalendriaasta,MONTH(AprP1+23)=4),AprP1+23,\"\"))","v":"2018-04-17"},{"$f":"IF(DAY(AprP1)=1,IF(AND(YEAR(AprP1+17)=Kalendriaasta,MONTH(AprP1+17)=4),AprP1+17,\"\"),IF(AND(YEAR(AprP1+24)=Kalendriaasta,MONTH(AprP1+24)=4),AprP1+24,\"\"))","v":"2018-04-18"},{"$f":"IF(DAY(AprP1)=1,IF(AND(YEAR(AprP1+18)=Kalendriaasta,MONTH(AprP1+18)=4),AprP1+18,\"\"),IF(AND(YEAR(AprP1+25)=Kalendriaasta,MONTH(AprP1+25)=4),AprP1+25,\"\"))","v":"2018-04-19"},{"$f":"IF(DAY(AprP1)=1,IF(AND(YEAR(AprP1+19)=Kalendriaasta,MONTH(AprP1+19)=4),AprP1+19,\"\"),IF(AND(YEAR(AprP1+26)=Kalendriaasta,MONTH(AprP1+26)=4),AprP1+26,\"\"))","v":"2018-04-20"},{"$f":"IF(DAY(AprP1)=1,IF(AND(YEAR(AprP1+20)=Kalendriaasta,MONTH(AprP1+20)=4),AprP1+20,\"\"),IF(AND(YEAR(AprP1+27)=Kalendriaasta,MONTH(AprP1+27)=4),AprP1+27,\"\"))","v":"2018-04-21"},{"$f":"IF(DAY(AprP1)=1,IF(AND(YEAR(AprP1+21)=Kalendriaasta,MONTH(AprP1+21)=4),AprP1+21,\"\"),IF(AND(YEAR(AprP1+28)=Kalendriaasta,MONTH(AprP1+28)=4),AprP1+28,\"\"))","v":"2018-04-22"}]
[]
[null,{"$f":"IF(DAY(AprP1)=1,IF(AND(YEAR(AprP1+22)=Kalendriaasta,MONTH(AprP1+22)=4),AprP1+22,\"\"),IF(AND(YEAR(AprP1+29)=Kalendriaasta,MONTH(AprP1+29)=4),AprP1+29,\"\"))","v":"2018-04-23"},{"$f":"IF(DAY(AprP1)=1,IF(AND(YEAR(AprP1+23)=Kalendriaasta,MONTH(AprP1+23)=4),AprP1+23,\"\"),IF(AND(YEAR(AprP1+30)=Kalendriaasta,MONTH(AprP1+30)=4),AprP1+30,\"\"))","v":"2018-04-24"},{"$f":"IF(DAY(AprP1)=1,IF(AND(YEAR(AprP1+24)=Kalendriaasta,MONTH(AprP1+24)=4),AprP1+24,\"\"),IF(AND(YEAR(AprP1+31)=Kalendriaasta,MONTH(AprP1+31)=4),AprP1+31,\"\"))","v":"2018-04-25"},{"$f":"IF(DAY(AprP1)=1,IF(AND(YEAR(AprP1+25)=Kalendriaasta,MONTH(AprP1+25)=4),AprP1+25,\"\"),IF(AND(YEAR(AprP1+32)=Kalendriaasta,MONTH(AprP1+32)=4),AprP1+32,\"\"))","v":"2018-04-26"},{"$f":"IF(DAY(AprP1)=1,IF(AND(YEAR(AprP1+26)=Kalendriaasta,MONTH(AprP1+26)=4),AprP1+26,\"\"),IF(AND(YEAR(AprP1+33)=Kalendriaasta,MONTH(AprP1+33)=4),AprP1+33,\"\"))","v":"2018-04-27"},{"$f":"IF(DAY(AprP1)=1,IF(AND(YEAR(AprP1+27)=Kalendriaasta,MONTH(AprP1+27)=4),AprP1+27,\"\"),IF(AND(YEAR(AprP1+34)=Kalendriaasta,MONTH(AprP1+34)=4),AprP1+34,\"\"))","v":"2018-04-28"},{"$f":"IF(DAY(AprP1)=1,IF(AND(YEAR(AprP1+28)=Kalendriaasta,MONTH(AprP1+28)=4),AprP1+28,\"\"),IF(AND(YEAR(AprP1+35)=Kalendriaasta,MONTH(AprP1+35)=4),AprP1+35,\"\"))","v":"2018-04-29"}]
[]
[null,{"$f":"IF(DAY(AprP1)=1,IF(AND(YEAR(AprP1+29)=Kalendriaasta,MONTH(AprP1+29)=4),AprP1+29,\"\"),IF(AND(YEAR(AprP1+36)=Kalendriaasta,MONTH(AprP1+36)=4),AprP1+36,\"\"))","v":"2018-04-30"},{"$f":"IF(DAY(AprP1)=1,IF(AND(YEAR(AprP1+30)=Kalendriaasta,MONTH(AprP1+30)=4),AprP1+30,\"\"),IF(AND(YEAR(AprP1+37)=Kalendriaasta,MONTH(AprP1+37)=4),AprP1+37,\"\"))","v":""},"MÄRKMED:"]

{"sheet":"Mai","index":4,"n_rows":15,"n_cols":8,"rows_kept":15,"merged":[[2,1,2,5],[14,3,14,7],[15,3,15,7]]}
[]
[]
[null,{"$f":"UPPER(TEXT(DATE(Kalendriaasta,5,1),\"mmmm yyyy\"))","v":"MAI 2018"}]
[null,"ESMASPÄEV","TEISIPÄEV","KOLMAPÄEV","NELJAPÄEV","REEDE","LAUPÄEV","PÜHAPÄEV"]
[null,{"$f":"IF(DAY(MaiP1)=1,\"\",IF(AND(YEAR(MaiP1+1)=Kalendriaasta,MONTH(MaiP1+1)=5),MaiP1+1,\"\"))","v":""},{"$f":"IF(DAY(MaiP1)=1,\"\",IF(AND(YEAR(MaiP1+2)=Kalendriaasta,MONTH(MaiP1+2)=5),MaiP1+2,\"\"))","v":"2018-05-01"},{"$f":"IF(DAY(MaiP1)=1,\"\",IF(AND(YEAR(MaiP1+3)=Kalendriaasta,MONTH(MaiP1+3)=5),MaiP1+3,\"\"))","v":"2018-05-02"},{"$f":"IF(DAY(MaiP1)=1,\"\",IF(AND(YEAR(MaiP1+4)=Kalendriaasta,MONTH(MaiP1+4)=5),MaiP1+4,\"\"))","v":"2018-05-03"},{"$f":"IF(DAY(MaiP1)=1,\"\",IF(AND(YEAR(MaiP1+5)=Kalendriaasta,MONTH(MaiP1+5)=5),MaiP1+5,\"\"))","v":"2018-05-04"},{"$f":"IF(DAY(MaiP1)=1,\"\",IF(AND(YEAR(MaiP1+6)=Kalendriaasta,MONTH(MaiP1+6)=5),MaiP1+6,\"\"))","v":"2018-05-05"},{"$f":"IF(DAY(MaiP1)=1,IF(AND(YEAR(MaiP1)=Kalendriaasta,MONTH(MaiP1)=5),MaiP1,\"\"),IF(AND(YEAR(MaiP1+7)=Kalendriaasta,MONTH(MaiP1+7)=5),MaiP1+7,\"\"))","v":"2018-05-06"}]
[]
[null,{"$f":"IF(DAY(MaiP1)=1,IF(AND(YEAR(MaiP1+1)=Kalendriaasta,MONTH(MaiP1+1)=5),MaiP1+1,\"\"),IF(AND(YEAR(MaiP1+8)=Kalendriaasta,MONTH(MaiP1+8)=5),MaiP1+8,\"\"))","v":"2018-05-07"},{"$f":"IF(DAY(MaiP1)=1,IF(AND(YEAR(MaiP1+2)=Kalendriaasta,MONTH(MaiP1+2)=5),MaiP1+2,\"\"),IF(AND(YEAR(MaiP1+9)=Kalendriaasta,MONTH(MaiP1+9)=5),MaiP1+9,\"\"))","v":"2018-05-08"},{"$f":"IF(DAY(MaiP1)=1,IF(AND(YEAR(MaiP1+3)=Kalendriaasta,MONTH(MaiP1+3)=5),MaiP1+3,\"\"),IF(AND(YEAR(MaiP1+10)=Kalendriaasta,MONTH(MaiP1+10)=5),MaiP1+10,\"\"))","v":"2018-05-09"},{"$f":"IF(DAY(MaiP1)=1,IF(AND(YEAR(MaiP1+4)=Kalendriaasta,MONTH(MaiP1+4)=5),MaiP1+4,\"\"),IF(AND(YEAR(MaiP1+11)=Kalendriaasta,MONTH(MaiP1+11)=5),MaiP1+11,\"\"))","v":"2018-05-10"},{"$f":"IF(DAY(MaiP1)=1,IF(AND(YEAR(MaiP1+5)=Kalendriaasta,MONTH(MaiP1+5)=5),MaiP1+5,\"\"),IF(AND(YEAR(MaiP1+12)=Kalendriaasta,MONTH(MaiP1+12)=5),MaiP1+12,\"\"))","v":"2018-05-11"},{"$f":"IF(DAY(MaiP1)=1,IF(AND(YEAR(MaiP1+6)=Kalendriaasta,MONTH(MaiP1+6)=5),MaiP1+6,\"\"),IF(AND(YEAR(MaiP1+13)=Kalendriaasta,MONTH(MaiP1+13)=5),MaiP1+13,\"\"))","v":"2018-05-12"},{"$f":"IF(DAY(MaiP1)=1,IF(AND(YEAR(MaiP1+7)=Kalendriaasta,MONTH(MaiP1+7)=5),MaiP1+7,\"\"),IF(AND(YEAR(MaiP1+14)=Kalendriaasta,MONTH(MaiP1+14)=5),MaiP1+14,\"\"))","v":"2018-05-13"}]
[]
[null,{"$f":"IF(DAY(MaiP1)=1,IF(AND(YEAR(MaiP1+8)=Kalendriaasta,MONTH(MaiP1+8)=5),MaiP1+8,\"\"),IF(AND(YEAR(MaiP1+15)=Kalendriaasta,MONTH(MaiP1+15)=5),MaiP1+15,\"\"))","v":"2018-05-14"},{"$f":"IF(DAY(MaiP1)=1,IF(AND(YEAR(MaiP1+9)=Kalendriaasta,MONTH(MaiP1+9)=5),MaiP1+9,\"\"),IF(AND(YEAR(MaiP1+16)=Kalendriaasta,MONTH(MaiP1+16)=5),MaiP1+16,\"\"))","v":"2018-05-15"},{"$f":"IF(DAY(MaiP1)=1,IF(AND(YEAR(MaiP1+10)=Kalendriaasta,MONTH(MaiP1+10)=5),MaiP1+10,\"\"),IF(AND(YEAR(MaiP1+17)=Kalendriaasta,MONTH(MaiP1+17)=5),MaiP1+17,\"\"))","v":"2018-05-16"},{"$f":"IF(DAY(MaiP1)=1,IF(AND(YEAR(MaiP1+11)=Kalendriaasta,MONTH(MaiP1+11)=5),MaiP1+11,\"\"),IF(AND(YEAR(MaiP1+18)=Kalendriaasta,MONTH(MaiP1+18)=5),MaiP1+18,\"\"))","v":"2018-05-17"},{"$f":"IF(DAY(MaiP1)=1,IF(AND(YEAR(MaiP1+12)=Kalendriaasta,MONTH(MaiP1+12)=5),MaiP1+12,\"\"),IF(AND(YEAR(MaiP1+19)=Kalendriaasta,MONTH(MaiP1+19)=5),MaiP1+19,\"\"))","v":"2018-05-18"},{"$f":"IF(DAY(MaiP1)=1,IF(AND(YEAR(MaiP1+13)=Kalendriaasta,MONTH(MaiP1+13)=5),MaiP1+13,\"\"),IF(AND(YEAR(MaiP1+20)=Kalendriaasta,MONTH(MaiP1+20)=5),MaiP1+20,\"\"))","v":"2018-05-19"},{"$f":"IF(DAY(MaiP1)=1,IF(AND(YEAR(MaiP1+14)=Kalendriaasta,MONTH(MaiP1+14)=5),MaiP1+14,\"\"),IF(AND(YEAR(MaiP1+21)=Kalendriaasta,MONTH(MaiP1+21)=5),MaiP1+21,\"\"))","v":"2018-05-20"}]
[]
[null,{"$f":"IF(DAY(MaiP1)=1,IF(AND(YEAR(MaiP1+15)=Kalendriaasta,MONTH(MaiP1+15)=5),MaiP1+15,\"\"),IF(AND(YEAR(MaiP1+22)=Kalendriaasta,MONTH(MaiP1+22)=5),MaiP1+22,\"\"))","v":"2018-05-21"},{"$f":"IF(DAY(MaiP1)=1,IF(AND(YEAR(MaiP1+16)=Kalendriaasta,MONTH(MaiP1+16)=5),MaiP1+16,\"\"),IF(AND(YEAR(MaiP1+23)=Kalendriaasta,MONTH(MaiP1+23)=5),MaiP1+23,\"\"))","v":"2018-05-22"},{"$f":"IF(DAY(MaiP1)=1,IF(AND(YEAR(MaiP1+17)=Kalendriaasta,MONTH(MaiP1+17)=5),MaiP1+17,\"\"),IF(AND(YEAR(MaiP1+24)=Kalendriaasta,MONTH(MaiP1+24)=5),MaiP1+24,\"\"))","v":"2018-05-23"},{"$f":"IF(DAY(MaiP1)=1,IF(AND(YEAR(MaiP1+18)=Kalendriaasta,MONTH(MaiP1+18)=5),MaiP1+18,\"\"),IF(AND(YEAR(MaiP1+25)=Kalendriaasta,MONTH(MaiP1+25)=5),MaiP1+25,\"\"))","v":"2018-05-24"},{"$f":"IF(DAY(MaiP1)=1,IF(AND(YEAR(MaiP1+19)=Kalendriaasta,MONTH(MaiP1+19)=5),MaiP1+19,\"\"),IF(AND(YEAR(MaiP1+26)=Kalendriaasta,MONTH(MaiP1+26)=5),MaiP1+26,\"\"))","v":"2018-05-25"},{"$f":"IF(DAY(MaiP1)=1,IF(AND(YEAR(MaiP1+20)=Kalendriaasta,MONTH(MaiP1+20)=5),MaiP1+20,\"\"),IF(AND(YEAR(MaiP1+27)=Kalendriaasta,MONTH(MaiP1+27)=5),MaiP1+27,\"\"))","v":"2018-05-26"},{"$f":"IF(DAY(MaiP1)=1,IF(AND(YEAR(MaiP1+21)=Kalendriaasta,MONTH(MaiP1+21)=5),MaiP1+21,\"\"),IF(AND(YEAR(MaiP1+28)=Kalendriaasta,MONTH(MaiP1+28)=5),MaiP1+28,\"\"))","v":"2018-05-27"}]
[]
[null,{"$f":"IF(DAY(MaiP1)=1,IF(AND(YEAR(MaiP1+22)=Kalendriaasta,MONTH(MaiP1+22)=5),MaiP1+22,\"\"),IF(AND(YEAR(MaiP1+29)=Kalendriaasta,MONTH(MaiP1+29)=5),MaiP1+29,\"\"))","v":"2018-05-28"},{"$f":"IF(DAY(MaiP1)=1,IF(AND(YEAR(MaiP1+23)=Kalendriaasta,MONTH(MaiP1+23)=5),MaiP1+23,\"\"),IF(AND(YEAR(MaiP1+30)=Kalendriaasta,MONTH(MaiP1+30)=5),MaiP1+30,\"\"))","v":"2018-05-29"},{"$f":"IF(DAY(MaiP1)=1,IF(AND(YEAR(MaiP1+24)=Kalendriaasta,MONTH(MaiP1+24)=5),MaiP1+24,\"\"),IF(AND(YEAR(MaiP1+31)=Kalendriaasta,MONTH(MaiP1+31)=5),MaiP1+31,\"\"))","v":"2018-05-30"},{"$f":"IF(DAY(MaiP1)=1,IF(AND(YEAR(MaiP1+25)=Kalendriaasta,MONTH(MaiP1+25)=5),MaiP1+25,\"\"),IF(AND(YEAR(MaiP1+32)=Kalendriaasta,MONTH(MaiP1+32)=5),MaiP1+32,\"\"))","v":"2018-05-31"},{"$f":"IF(DAY(MaiP1)=1,IF(AND(YEAR(MaiP1+26)=Kalendriaasta,MONTH(MaiP1+26)=5),MaiP1+26,\"\"),IF(AND(YEAR(MaiP1+33)=Kalendriaasta,MONTH(MaiP1+33)=5),MaiP1+33,\"\"))","v":""},{"$f":"IF(DAY(MaiP1)=1,IF(AND(YEAR(MaiP1+27)=Kalendriaasta,MONTH(MaiP1+27)=5),MaiP1+27,\"\"),IF(AND(YEAR(MaiP1+34)=Kalendriaasta,MONTH(MaiP1+34)=5),MaiP1+34,\"\"))","v":""},{"$f":"IF(DAY(MaiP1)=1,IF(AND(YEAR(MaiP1+28)=Kalendriaasta,MONTH(MaiP1+28)=5),MaiP1+28,\"\"),IF(AND(YEAR(MaiP1+35)=Kalendriaasta,MONTH(MaiP1+35)=5),MaiP1+35,\"\"))","v":""}]
[]
[null,{"$f":"IF(DAY(MaiP1)=1,IF(AND(YEAR(MaiP1+29)=Kalendriaasta,MONTH(MaiP1+29)=5),MaiP1+29,\"\"),IF(AND(YEAR(MaiP1+36)=Kalendriaasta,MONTH(MaiP1+36)=5),MaiP1+36,\"\"))","v":""},{"$f":"IF(DAY(MaiP1)=1,IF(AND(YEAR(MaiP1+30)=Kalendriaasta,MONTH(MaiP1+30)=5),MaiP1+30,\"\"),IF(AND(YEAR(MaiP1+37)=Kalendriaasta,MONTH(MaiP1+37)=5),MaiP1+37,\"\"))","v":""},"MÄRKMED:"]

{"sheet":"Juuni","index":5,"n_rows":15,"n_cols":8,"rows_kept":15,"merged":[[2,1,2,5],[14,3,14,7],[15,3,15,7]]}
[]
[]
[null,{"$f":"UPPER(TEXT(DATE(Kalendriaasta,6,1),\"mmmm yyyy\"))","v":"JUUNI 2018"}]
[null,"ESMASPÄEV","TEISIPÄEV","KOLMAPÄEV","NELJAPÄEV","REEDE","LAUPÄEV","PÜHAPÄEV"]
[null,{"$f":"IF(DAY(JuuniP1)=1,\"\",IF(AND(YEAR(JuuniP1+1)=Kalendriaasta,MONTH(JuuniP1+1)=6),JuuniP1+1,\"\"))","v":""},{"$f":"IF(DAY(JuuniP1)=1,\"\",IF(AND(YEAR(JuuniP1+2)=Kalendriaasta,MONTH(JuuniP1+2)=6),JuuniP1+2,\"\"))","v":""},{"$f":"IF(DAY(JuuniP1)=1,\"\",IF(AND(YEAR(JuuniP1+3)=Kalendriaasta,MONTH(JuuniP1+3)=6),JuuniP1+3,\"\"))","v":""},{"$f":"IF(DAY(JuuniP1)=1,\"\",IF(AND(YEAR(JuuniP1+4)=Kalendriaasta,MONTH(JuuniP1+4)=6),JuuniP1+4,\"\"))","v":""},{"$f":"IF(DAY(JuuniP1)=1,\"\",IF(AND(YEAR(JuuniP1+5)=Kalendriaasta,MONTH(JuuniP1+5)=6),JuuniP1+5,\"\"))","v":"2018-06-01"},{"$f":"IF(DAY(JuuniP1)=1,\"\",IF(AND(YEAR(JuuniP1+6)=Kalendriaasta,MONTH(JuuniP1+6)=6),JuuniP1+6,\"\"))","v":"2018-06-02"},{"$f":"IF(DAY(JuuniP1)=1,IF(AND(YEAR(JuuniP1)=Kalendriaasta,MONTH(JuuniP1)=6),JuuniP1,\"\"),IF(AND(YEAR(JuuniP1+7)=Kalendriaasta,MONTH(JuuniP1+7)=6),JuuniP1+7,\"\"))","v":"2018-06-03"}]
[]
[null,{"$f":"IF(DAY(JuuniP1)=1,IF(AND(YEAR(JuuniP1+1)=Kalendriaasta,MONTH(JuuniP1+1)=6),JuuniP1+1,\"\"),IF(AND(YEAR(JuuniP1+8)=Kalendriaasta,MONTH(JuuniP1+8)=6),JuuniP1+8,\"\"))","v":"2018-06-04"},{"$f":"IF(DAY(JuuniP1)=1,IF(AND(YEAR(JuuniP1+2)=Kalendriaasta,MONTH(JuuniP1+2)=6),JuuniP1+2,\"\"),IF(AND(YEAR(JuuniP1+9)=Kalendriaasta,MONTH(JuuniP1+9)=6),JuuniP1+9,\"\"))","v":"2018-06-05"},{"$f":"IF(DAY(JuuniP1)=1,IF(AND(YEAR(JuuniP1+3)=Kalendriaasta,MONTH(JuuniP1+3)=6),JuuniP1+3,\"\"),IF(AND(YEAR(JuuniP1+10)=Kalendriaasta,MONTH(JuuniP1+10)=6),JuuniP1+10,\"\"))","v":"2018-06-06"},{"$f":"IF(DAY(JuuniP1)=1,IF(AND(YEAR(JuuniP1+4)=Kalendriaasta,MONTH(JuuniP1+4)=6),JuuniP1+4,\"\"),IF(AND(YEAR(JuuniP1+11)=Kalendriaasta,MONTH(JuuniP1+11)=6),JuuniP1+11,\"\"))","v":"2018-06-07"},{"$f":"IF(DAY(JuuniP1)=1,IF(AND(YEAR(JuuniP1+5)=Kalendriaasta,MONTH(JuuniP1+5)=6),JuuniP1+5,\"\"),IF(AND(YEAR(JuuniP1+12)=Kalendriaasta,MONTH(JuuniP1+12)=6),JuuniP1+12,\"\"))","v":"2018-06-08"},{"$f":"IF(DAY(JuuniP1)=1,IF(AND(YEAR(JuuniP1+6)=Kalendriaasta,MONTH(JuuniP1+6)=6),JuuniP1+6,\"\"),IF(AND(YEAR(JuuniP1+13)=Kalendriaasta,MONTH(JuuniP1+13)=6),JuuniP1+13,\"\"))","v":"2018-06-09"},{"$f":"IF(DAY(JuuniP1)=1,IF(AND(YEAR(JuuniP1+7)=Kalendriaasta,MONTH(JuuniP1+7)=6),JuuniP1+7,\"\"),IF(AND(YEAR(JuuniP1+14)=Kalendriaasta,MONTH(JuuniP1+14)=6),JuuniP1+14,\"\"))","v":"2018-06-10"}]
[]
[null,{"$f":"IF(DAY(JuuniP1)=1,IF(AND(YEAR(JuuniP1+8)=Kalendriaasta,MONTH(JuuniP1+8)=6),JuuniP1+8,\"\"),IF(AND(YEAR(JuuniP1+15)=Kalendriaasta,MONTH(JuuniP1+15)=6),JuuniP1+15,\"\"))","v":"2018-06-11"},{"$f":"IF(DAY(JuuniP1)=1,IF(AND(YEAR(JuuniP1+9)=Kalendriaasta,MONTH(JuuniP1+9)=6),JuuniP1+9,\"\"),IF(AND(YEAR(JuuniP1+16)=Kalendriaasta,MONTH(JuuniP1+16)=6),JuuniP1+16,\"\"))","v":"2018-06-12"},{"$f":"IF(DAY(JuuniP1)=1,IF(AND(YEAR(JuuniP1+10)=Kalendriaasta,MONTH(JuuniP1+10)=6),JuuniP1+10,\"\"),IF(AND(YEAR(JuuniP1+17)=Kalendriaasta,MONTH(JuuniP1+17)=6),JuuniP1+17,\"\"))","v":"2018-06-13"},{"$f":"IF(DAY(JuuniP1)=1,IF(AND(YEAR(JuuniP1+11)=Kalendriaasta,MONTH(JuuniP1+11)=6),JuuniP1+11,\"\"),IF(AND(YEAR(JuuniP1+18)=Kalendriaasta,MONTH(JuuniP1+18)=6),JuuniP1+18,\"\"))","v":"2018-06-14"},{"$f":"IF(DAY(JuuniP1)=1,IF(AND(YEAR(JuuniP1+12)=Kalendriaasta,MONTH(JuuniP1+12)=6),JuuniP1+12,\"\"),IF(AND(YEAR(JuuniP1+19)=Kalendriaasta,MONTH(JuuniP1+19)=6),JuuniP1+19,\"\"))","v":"2018-06-15"},{"$f":"IF(DAY(JuuniP1)=1,IF(AND(YEAR(JuuniP1+13)=Kalendriaasta,MONTH(JuuniP1+13)=6),JuuniP1+13,\"\"),IF(AND(YEAR(JuuniP1+20)=Kalendriaasta,MONTH(JuuniP1+20)=6),JuuniP1+20,\"\"))","v":"2018-06-16"},{"$f":"IF(DAY(JuuniP1)=1,IF(AND(YEAR(JuuniP1+14)=Kalendriaasta,MONTH(JuuniP1+14)=6),JuuniP1+14,\"\"),IF(AND(YEAR(JuuniP1+21)=Kalendriaasta,MONTH(JuuniP1+21)=6),JuuniP1+21,\"\"))","v":"2018-06-17"}]
[]
[null,{"$f":"IF(DAY(JuuniP1)=1,IF(AND(YEAR(JuuniP1+15)=Kalendriaasta,MONTH(JuuniP1+15)=6),JuuniP1+15,\"\"),IF(AND(YEAR(JuuniP1+22)=Kalendriaasta,MONTH(JuuniP1+22)=6),JuuniP1+22,\"\"))","v":"2018-06-18"},{"$f":"IF(DAY(JuuniP1)=1,IF(AND(YEAR(JuuniP1+16)=Kalendriaasta,MONTH(JuuniP1+16)=6),JuuniP1+16,\"\"),IF(AND(YEAR(JuuniP1+23)=Kalendriaasta,MONTH(JuuniP1+23)=6),JuuniP1+23,\"\"))","v":"2018-06-19"},{"$f":"IF(DAY(JuuniP1)=1,IF(AND(YEAR(JuuniP1+17)=Kalendriaasta,MONTH(JuuniP1+17)=6),JuuniP1+17,\"\"),IF(AND(YEAR(JuuniP1+24)=Kalendriaasta,MONTH(JuuniP1+24)=6),JuuniP1+24,\"\"))","v":"2018-06-20"},{"$f":"IF(DAY(JuuniP1)=1,IF(AND(YEAR(JuuniP1+18)=Kalendriaasta,MONTH(JuuniP1+18)=6),JuuniP1+18,\"\"),IF(AND(YEAR(JuuniP1+25)=Kalendriaasta,MONTH(JuuniP1+25)=6),JuuniP1+25,\"\"))","v":"2018-06-21"},{"$f":"IF(DAY(JuuniP1)=1,IF(AND(YEAR(JuuniP1+19)=Kalendriaasta,MONTH(JuuniP1+19)=6),JuuniP1+19,\"\"),IF(AND(YEAR(JuuniP1+26)=Kalendriaasta,MONTH(JuuniP1+26)=6),JuuniP1+26,\"\"))","v":"2018-06-22"},{"$f":"IF(DAY(JuuniP1)=1,IF(AND(YEAR(JuuniP1+20)=Kalendriaasta,MONTH(JuuniP1+20)=6),JuuniP1+20,\"\"),IF(AND(YEAR(JuuniP1+27)=Kalendriaasta,MONTH(JuuniP1+27)=6),JuuniP1+27,\"\"))","v":"2018-06-23"},{"$f":"IF(DAY(JuuniP1)=1,IF(AND(YEAR(JuuniP1+21)=Kalendriaasta,MONTH(JuuniP1+21)=6),JuuniP1+21,\"\"),IF(AND(YEAR(JuuniP1+28)=Kalendriaasta,MONTH(JuuniP1+28)=6),JuuniP1+28,\"\"))","v":"2018-06-24"}]
[]
[null,{"$f":"IF(DAY(JuuniP1)=1,IF(AND(YEAR(JuuniP1+22)=Kalendriaasta,MONTH(JuuniP1+22)=6),JuuniP1+22,\"\"),IF(AND(YEAR(JuuniP1+29)=Kalendriaasta,MONTH(JuuniP1+29)=6),JuuniP1+29,\"\"))","v":"2018-06-25"},{"$f":"IF(DAY(JuuniP1)=1,IF(AND(YEAR(JuuniP1+23)=Kalendriaasta,MONTH(JuuniP1+23)=6),JuuniP1+23,\"\"),IF(AND(YEAR(JuuniP1+30)=Kalendriaasta,MONTH(JuuniP1+30)=6),JuuniP1+30,\"\"))","v":"2018-06-26"},{"$f":"IF(DAY(JuuniP1)=1,IF(AND(YEAR(JuuniP1+24)=Kalendriaasta,MONTH(JuuniP1+24)=6),JuuniP1+24,\"\"),IF(AND(YEAR(JuuniP1+31)=Kalendriaasta,MONTH(JuuniP1+31)=6),JuuniP1+31,\"\"))","v":"2018-06-27"},{"$f":"IF(DAY(JuuniP1)=1,IF(AND(YEAR(JuuniP1+25)=Kalendriaasta,MONTH(JuuniP1+25)=6),JuuniP1+25,\"\"),IF(AND(YEAR(JuuniP1+32)=Kalendriaasta,MONTH(JuuniP1+32)=6),JuuniP1+32,\"\"))","v":"2018-06-28"},{"$f":"IF(DAY(JuuniP1)=1,IF(AND(YEAR(JuuniP1+26)=Kalendriaasta,MONTH(JuuniP1+26)=6),JuuniP1+26,\"\"),IF(AND(YEAR(JuuniP1+33)=Kalendriaasta,MONTH(JuuniP1+33)=6),JuuniP1+33,\"\"))","v":"2018-06-29"},{"$f":"IF(DAY(JuuniP1)=1,IF(AND(YEAR(JuuniP1+27)=Kalendriaasta,MONTH(JuuniP1+27)=6),JuuniP1+27,\"\"),IF(AND(YEAR(JuuniP1+34)=Kalendriaasta,MONTH(JuuniP1+34)=6),JuuniP1+34,\"\"))","v":"2018-06-30"},{"$f":"IF(DAY(JuuniP1)=1,IF(AND(YEAR(JuuniP1+28)=Kalendriaasta,MONTH(JuuniP1+28)=6),JuuniP1+28,\"\"),IF(AND(YEAR(JuuniP1+35)=Kalendriaasta,MONTH(JuuniP1+35)=6),JuuniP1+35,\"\"))","v":""}]
[]
[null,{"$f":"IF(DAY(JuuniP1)=1,IF(AND(YEAR(JuuniP1+29)=Kalendriaasta,MONTH(JuuniP1+29)=6),JuuniP1+29,\"\"),IF(AND(YEAR(JuuniP1+36)=Kalendriaasta,MONTH(JuuniP1+36)=6),JuuniP1+36,\"\"))","v":""},{"$f":"IF(DAY(JuuniP1)=1,IF(AND(YEAR(JuuniP1+30)=Kalendriaasta,MONTH(JuuniP1+30)=6),JuuniP1+30,\"\"),IF(AND(YEAR(JuuniP1+37)=Kalendriaasta,MONTH(JuuniP1+37)=6),JuuniP1+37,\"\"))","v":""},"MÄRKMED:"]

{"sheet":"Juuli","index":6,"n_rows":15,"n_cols":8,"rows_kept":15,"merged":[[2,1,2,5],[14,3,14,7],[15,3,15,7]]}
[]
[]
[null,{"$f":"UPPER(TEXT(DATE(Kalendriaasta,7,1),\"mmmm yyyy\"))","v":"JUULI 2018"}]
[null,"ESMASPÄEV","TEISIPÄEV","KOLMAPÄEV","NELJAPÄEV","REEDE","LAUPÄEV","PÜHAPÄEV"]
[null,{"$f":"IF(DAY(JuuliP1)=1,\"\",IF(AND(YEAR(JuuliP1+1)=Kalendriaasta,MONTH(JuuliP1+1)=7),JuuliP1+1,\"\"))","v":""},{"$f":"IF(DAY(JuuliP1)=1,\"\",IF(AND(YEAR(JuuliP1+2)=Kalendriaasta,MONTH(JuuliP1+2)=7),JuuliP1+2,\"\"))","v":""},{"$f":"IF(DAY(JuuliP1)=1,\"\",IF(AND(YEAR(JuuliP1+3)=Kalendriaasta,MONTH(JuuliP1+3)=7),JuuliP1+3,\"\"))","v":""},{"$f":"IF(DAY(JuuliP1)=1,\"\",IF(AND(YEAR(JuuliP1+4)=Kalendriaasta,MONTH(JuuliP1+4)=7),JuuliP1+4,\"\"))","v":""},{"$f":"IF(DAY(JuuliP1)=1,\"\",IF(AND(YEAR(JuuliP1+5)=Kalendriaasta,MONTH(JuuliP1+5)=7),JuuliP1+5,\"\"))","v":""},{"$f":"IF(DAY(JuuliP1)=1,\"\",IF(AND(YEAR(JuuliP1+6)=Kalendriaasta,MONTH(JuuliP1+6)=7),JuuliP1+6,\"\"))","v":""},{"$f":"IF(DAY(JuuliP1)=1,IF(AND(YEAR(JuuliP1)=Kalendriaasta,MONTH(JuuliP1)=7),JuuliP1,\"\"),IF(AND(YEAR(JuuliP1+7)=Kalendriaasta,MONTH(JuuliP1+7)=7),JuuliP1+7,\"\"))","v":"2018-07-01"}]
[]
[null,{"$f":"IF(DAY(JuuliP1)=1,IF(AND(YEAR(JuuliP1+1)=Kalendriaasta,MONTH(JuuliP1+1)=7),JuuliP1+1,\"\"),IF(AND(YEAR(JuuliP1+8)=Kalendriaasta,MONTH(JuuliP1+8)=7),JuuliP1+8,\"\"))","v":"2018-07-02"},{"$f":"IF(DAY(JuuliP1)=1,IF(AND(YEAR(JuuliP1+2)=Kalendriaasta,MONTH(JuuliP1+2)=7),JuuliP1+2,\"\"),IF(AND(YEAR(JuuliP1+9)=Kalendriaasta,MONTH(JuuliP1+9)=7),JuuliP1+9,\"\"))","v":"2018-07-03"},{"$f":"IF(DAY(JuuliP1)=1,IF(AND(YEAR(JuuliP1+3)=Kalendriaasta,MONTH(JuuliP1+3)=7),JuuliP1+3,\"\"),IF(AND(YEAR(JuuliP1+10)=Kalendriaasta,MONTH(JuuliP1+10)=7),JuuliP1+10,\"\"))","v":"2018-07-04"},{"$f":"IF(DAY(JuuliP1)=1,IF(AND(YEAR(JuuliP1+4)=Kalendriaasta,MONTH(JuuliP1+4)=7),JuuliP1+4,\"\"),IF(AND(YEAR(JuuliP1+11)=Kalendriaasta,MONTH(JuuliP1+11)=7),JuuliP1+11,\"\"))","v":"2018-07-05"},{"$f":"IF(DAY(JuuliP1)=1,IF(AND(YEAR(JuuliP1+5)=Kalendriaasta,MONTH(JuuliP1+5)=7),JuuliP1+5,\"\"),IF(AND(YEAR(JuuliP1+12)=Kalendriaasta,MONTH(JuuliP1+12)=7),JuuliP1+12,\"\"))","v":"2018-07-06"},{"$f":"IF(DAY(JuuliP1)=1,IF(AND(YEAR(JuuliP1+6)=Kalendriaasta,MONTH(JuuliP1+6)=7),JuuliP1+6,\"\"),IF(AND(YEAR(JuuliP1+13)=Kalendriaasta,MONTH(JuuliP1+13)=7),JuuliP1+13,\"\"))","v":"2018-07-07"},{"$f":"IF(DAY(JuuliP1)=1,IF(AND(YEAR(JuuliP1+7)=Kalendriaasta,MONTH(JuuliP1+7)=7),JuuliP1+7,\"\"),IF(AND(YEAR(JuuliP1+14)=Kalendriaasta,MONTH(JuuliP1+14)=7),JuuliP1+14,\"\"))","v":"2018-07-08"}]
[]
[null,{"$f":"IF(DAY(JuuliP1)=1,IF(AND(YEAR(JuuliP1+8)=Kalendriaasta,MONTH(JuuliP1+8)=7),JuuliP1+8,\"\"),IF(AND(YEAR(JuuliP1+15)=Kalendriaasta,MONTH(JuuliP1+15)=7),JuuliP1+15,\"\"))","v":"2018-07-09"},{"$f":"IF(DAY(JuuliP1)=1,IF(AND(YEAR(JuuliP1+9)=Kalendriaasta,MONTH(JuuliP1+9)=7),JuuliP1+9,\"\"),IF(AND(YEAR(JuuliP1+16)=Kalendriaasta,MONTH(JuuliP1+16)=7),JuuliP1+16,\"\"))","v":"2018-07-10"},{"$f":"IF(DAY(JuuliP1)=1,IF(AND(YEAR(JuuliP1+10)=Kalendriaasta,MONTH(JuuliP1+10)=7),JuuliP1+10,\"\"),IF(AND(YEAR(JuuliP1+17)=Kalendriaasta,MONTH(JuuliP1+17)=7),JuuliP1+17,\"\"))","v":"2018-07-11"},{"$f":"IF(DAY(JuuliP1)=1,IF(AND(YEAR(JuuliP1+11)=Kalendriaasta,MONTH(JuuliP1+11)=7),JuuliP1+11,\"\"),IF(AND(YEAR(JuuliP1+18)=Kalendriaasta,MONTH(JuuliP1+18)=7),JuuliP1+18,\"\"))","v":"2018-07-12"},{"$f":"IF(DAY(JuuliP1)=1,IF(AND(YEAR(JuuliP1+12)=Kalendriaasta,MONTH(JuuliP1+12)=7),JuuliP1+12,\"\"),IF(AND(YEAR(JuuliP1+19)=Kalendriaasta,MONTH(JuuliP1+19)=7),JuuliP1+19,\"\"))","v":"2018-07-13"},{"$f":"IF(DAY(JuuliP1)=1,IF(AND(YEAR(JuuliP1+13)=Kalendriaasta,MONTH(JuuliP1+13)=7),JuuliP1+13,\"\"),IF(AND(YEAR(JuuliP1+20)=Kalendriaasta,MONTH(JuuliP1+20)=7),JuuliP1+20,\"\"))","v":"2018-07-14"},{"$f":"IF(DAY(JuuliP1)=1,IF(AND(YEAR(JuuliP1+14)=Kalendriaasta,MONTH(JuuliP1+14)=7),JuuliP1+14,\"\"),IF(AND(YEAR(JuuliP1+21)=Kalendriaasta,MONTH(JuuliP1+21)=7),JuuliP1+21,\"\"))","v":"2018-07-15"}]
[]
[null,{"$f":"IF(DAY(JuuliP1)=1,IF(AND(YEAR(JuuliP1+15)=Kalendriaasta,MONTH(JuuliP1+15)=7),JuuliP1+15,\"\"),IF(AND(YEAR(JuuliP1+22)=Kalendriaasta,MONTH(JuuliP1+22)=7),JuuliP1+22,\"\"))","v":"2018-07-16"},{"$f":"IF(DAY(JuuliP1)=1,IF(AND(YEAR(JuuliP1+16)=Kalendriaasta,MONTH(JuuliP1+16)=7),JuuliP1+16,\"\"),IF(AND(YEAR(JuuliP1+23)=Kalendriaasta,MONTH(JuuliP1+23)=7),JuuliP1+23,\"\"))","v":"2018-07-17"},{"$f":"IF(DAY(JuuliP1)=1,IF(AND(YEAR(JuuliP1+17)=Kalendriaasta,MONTH(JuuliP1+17)=7),JuuliP1+17,\"\"),IF(AND(YEAR(JuuliP1+24)=Kalendriaasta,MONTH(JuuliP1+24)=7),JuuliP1+24,\"\"))","v":"2018-07-18"},{"$f":"IF(DAY(JuuliP1)=1,IF(AND(YEAR(JuuliP1+18)=Kalendriaasta,MONTH(JuuliP1+18)=7),JuuliP1+18,\"\"),IF(AND(YEAR(JuuliP1+25)=Kalendriaasta,MONTH(JuuliP1+25)=7),JuuliP1+25,\"\"))","v":"2018-07-19"},{"$f":"IF(DAY(JuuliP1)=1,IF(AND(YEAR(JuuliP1+19)=Kalendriaasta,MONTH(JuuliP1+19)=7),JuuliP1+19,\"\"),IF(AND(YEAR(JuuliP1+26)=Kalendriaasta,MONTH(JuuliP1+26)=7),JuuliP1+26,\"\"))","v":"2018-07-20"},{"$f":"IF(DAY(JuuliP1)=1,IF(AND(YEAR(JuuliP1+20)=Kalendriaasta,MONTH(JuuliP1+20)=7),JuuliP1+20,\"\"),IF(AND(YEAR(JuuliP1+27)=Kalendriaasta,MONTH(JuuliP1+27)=7),JuuliP1+27,\"\"))","v":"2018-07-21"},{"$f":"IF(DAY(JuuliP1)=1,IF(AND(YEAR(JuuliP1+21)=Kalendriaasta,MONTH(JuuliP1+21)=7),JuuliP1+21,\"\"),IF(AND(YEAR(JuuliP1+28)=Kalendriaasta,MONTH(JuuliP1+28)=7),JuuliP1+28,\"\"))","v":"2018-07-22"}]
[]
[null,{"$f":"IF(DAY(JuuliP1)=1,IF(AND(YEAR(JuuliP1+22)=Kalendriaasta,MONTH(JuuliP1+22)=7),JuuliP1+22,\"\"),IF(AND(YEAR(JuuliP1+29)=Kalendriaasta,MONTH(JuuliP1+29)=7),JuuliP1+29,\"\"))","v":"2018-07-23"},{"$f":"IF(DAY(JuuliP1)=1,IF(AND(YEAR(JuuliP1+23)=Kalendriaasta,MONTH(JuuliP1+23)=7),JuuliP1+23,\"\"),IF(AND(YEAR(JuuliP1+30)=Kalendriaasta,MONTH(JuuliP1+30)=7),JuuliP1+30,\"\"))","v":"2018-07-24"},{"$f":"IF(DAY(JuuliP1)=1,IF(AND(YEAR(JuuliP1+24)=Kalendriaasta,MONTH(JuuliP1+24)=7),JuuliP1+24,\"\"),IF(AND(YEAR(JuuliP1+31)=Kalendriaasta,MONTH(JuuliP1+31)=7),JuuliP1+31,\"\"))","v":"2018-07-25"},{"$f":"IF(DAY(JuuliP1)=1,IF(AND(YEAR(JuuliP1+25)=Kalendriaasta,MONTH(JuuliP1+25)=7),JuuliP1+25,\"\"),IF(AND(YEAR(JuuliP1+32)=Kalendriaasta,MONTH(JuuliP1+32)=7),JuuliP1+32,\"\"))","v":"2018-07-26"},{"$f":"IF(DAY(JuuliP1)=1,IF(AND(YEAR(JuuliP1+26)=Kalendriaasta,MONTH(JuuliP1+26)=7),JuuliP1+26,\"\"),IF(AND(YEAR(JuuliP1+33)=Kalendriaasta,MONTH(JuuliP1+33)=7),JuuliP1+33,\"\"))","v":"2018-07-27"},{"$f":"IF(DAY(JuuliP1)=1,IF(AND(YEAR(JuuliP1+27)=Kalendriaasta,MONTH(JuuliP1+27)=7),JuuliP1+27,\"\"),IF(AND(YEAR(JuuliP1+34)=Kalendriaasta,MONTH(JuuliP1+34)=7),JuuliP1+34,\"\"))","v":"2018-07-28"},{"$f":"IF(DAY(JuuliP1)=1,IF(AND(YEAR(JuuliP1+28)=Kalendriaasta,MONTH(JuuliP1+28)=7),JuuliP1+28,\"\"),IF(AND(YEAR(JuuliP1+35)=Kalendriaasta,MONTH(JuuliP1+35)=7),JuuliP1+35,\"\"))","v":"2018-07-29"}]
[]
[null,{"$f":"IF(DAY(JuuliP1)=1,IF(AND(YEAR(JuuliP1+29)=Kalendriaasta,MONTH(JuuliP1+29)=7),JuuliP1+29,\"\"),IF(AND(YEAR(JuuliP1+36)=Kalendriaasta,MONTH(JuuliP1+36)=7),JuuliP1+36,\"\"))","v":"2018-07-30"},{"$f":"IF(DAY(JuuliP1)=1,IF(AND(YEAR(JuuliP1+30)=Kalendriaasta,MONTH(JuuliP1+30)=7),JuuliP1+30,\"\"),IF(AND(YEAR(JuuliP1+37)=Kalendriaasta,MONTH(JuuliP1+37)=7),JuuliP1+37,\"\"))","v":"2018-07-31"},"MÄRKMED:"]

{"sheet":"Aug","index":7,"n_rows":15,"n_cols":8,"rows_kept":15,"merged":[[2,1,2,5],[14,3,14,7],[15,3,15,7]]}
[]
[]
[null,{"$f":"UPPER(TEXT(DATE(Kalendriaasta,8,1),\"mmmm yyyy\"))","v":"AUGUST 2018"}]
[null,"ESMASPÄEV","TEISIPÄEV","KOLMAPÄEV","NELJAPÄEV","REEDE","LAUPÄEV","PÜHAPÄEV"]
[null,{"$f":"IF(DAY(AugP1)=1,\"\",IF(AND(YEAR(AugP1+1)=Kalendriaasta,MONTH(AugP1+1)=8),AugP1+1,\"\"))","v":""},{"$f":"IF(DAY(AugP1)=1,\"\",IF(AND(YEAR(AugP1+2)=Kalendriaasta,MONTH(AugP1+2)=8),AugP1+2,\"\"))","v":""},{"$f":"IF(DAY(AugP1)=1,\"\",IF(AND(YEAR(AugP1+3)=Kalendriaasta,MONTH(AugP1+3)=8),AugP1+3,\"\"))","v":"2018-08-01"},{"$f":"IF(DAY(AugP1)=1,\"\",IF(AND(YEAR(AugP1+4)=Kalendriaasta,MONTH(AugP1+4)=8),AugP1+4,\"\"))","v":"2018-08-02"},{"$f":"IF(DAY(AugP1)=1,\"\",IF(AND(YEAR(AugP1+5)=Kalendriaasta,MONTH(AugP1+5)=8),AugP1+5,\"\"))","v":"2018-08-03"},{"$f":"IF(DAY(AugP1)=1,\"\",IF(AND(YEAR(AugP1+6)=Kalendriaasta,MONTH(AugP1+6)=8),AugP1+6,\"\"))","v":"2018-08-04"},{"$f":"IF(DAY(AugP1)=1,IF(AND(YEAR(AugP1)=Kalendriaasta,MONTH(AugP1)=8),AugP1,\"\"),IF(AND(YEAR(AugP1+7)=Kalendriaasta,MONTH(AugP1+7)=8),AugP1+7,\"\"))","v":"2018-08-05"}]
[]
[null,{"$f":"IF(DAY(AugP1)=1,IF(AND(YEAR(AugP1+1)=Kalendriaasta,MONTH(AugP1+1)=8),AugP1+1,\"\"),IF(AND(YEAR(AugP1+8)=Kalendriaasta,MONTH(AugP1+8)=8),AugP1+8,\"\"))","v":"2018-08-06"},{"$f":"IF(DAY(AugP1)=1,IF(AND(YEAR(AugP1+2)=Kalendriaasta,MONTH(AugP1+2)=8),AugP1+2,\"\"),IF(AND(YEAR(AugP1+9)=Kalendriaasta,MONTH(AugP1+9)=8),AugP1+9,\"\"))","v":"2018-08-07"},{"$f":"IF(DAY(AugP1)=1,IF(AND(YEAR(AugP1+3)=Kalendriaasta,MONTH(AugP1+3)=8),AugP1+3,\"\"),IF(AND(YEAR(AugP1+10)=Kalendriaasta,MONTH(AugP1+10)=8),AugP1+10,\"\"))","v":"2018-08-08"},{"$f":"IF(DAY(AugP1)=1,IF(AND(YEAR(AugP1+4)=Kalendriaasta,MONTH(AugP1+4)=8),AugP1+4,\"\"),IF(AND(YEAR(AugP1+11)=Kalendriaasta,MONTH(AugP1+11)=8),AugP1+11,\"\"))","v":"2018-08-09"},{"$f":"IF(DAY(AugP1)=1,IF(AND(YEAR(AugP1+5)=Kalendriaasta,MONTH(AugP1+5)=8),AugP1+5,\"\"),IF(AND(YEAR(AugP1+12)=Kalendriaasta,MONTH(AugP1+12)=8),AugP1+12,\"\"))","v":"2018-08-10"},{"$f":"IF(DAY(AugP1)=1,IF(AND(YEAR(AugP1+6)=Kalendriaasta,MONTH(AugP1+6)=8),AugP1+6,\"\"),IF(AND(YEAR(AugP1+13)=Kalendriaasta,MONTH(AugP1+13)=8),AugP1+13,\"\"))","v":"2018-08-11"},{"$f":"IF(DAY(AugP1)=1,IF(AND(YEAR(AugP1+7)=Kalendriaasta,MONTH(AugP1+7)=8),AugP1+7,\"\"),IF(AND(YEAR(AugP1+14)=Kalendriaasta,MONTH(AugP1+14)=8),AugP1+14,\"\"))","v":"2018-08-12"}]
[]
[null,{"$f":"IF(DAY(AugP1)=1,IF(AND(YEAR(AugP1+8)=Kalendriaasta,MONTH(AugP1+8)=8),AugP1+8,\"\"),IF(AND(YEAR(AugP1+15)=Kalendriaasta,MONTH(AugP1+15)=8),AugP1+15,\"\"))","v":"2018-08-13"},{"$f":"IF(DAY(AugP1)=1,IF(AND(YEAR(AugP1+9)=Kalendriaasta,MONTH(AugP1+9)=8),AugP1+9,\"\"),IF(AND(YEAR(AugP1+16)=Kalendriaasta,MONTH(AugP1+16)=8),AugP1+16,\"\"))","v":"2018-08-14"},{"$f":"IF(DAY(AugP1)=1,IF(AND(YEAR(AugP1+10)=Kalendriaasta,MONTH(AugP1+10)=8),AugP1+10,\"\"),IF(AND(YEAR(AugP1+17)=Kalendriaasta,MONTH(AugP1+17)=8),AugP1+17,\"\"))","v":"2018-08-15"},{"$f":"IF(DAY(AugP1)=1,IF(AND(YEAR(AugP1+11)=Kalendriaasta,MONTH(AugP1+11)=8),AugP1+11,\"\"),IF(AND(YEAR(AugP1+18)=Kalendriaasta,MONTH(AugP1+18)=8),AugP1+18,\"\"))","v":"2018-08-16"},{"$f":"IF(DAY(AugP1)=1,IF(AND(YEAR(AugP1+12)=Kalendriaasta,MONTH(AugP1+12)=8),AugP1+12,\"\"),IF(AND(YEAR(AugP1+19)=Kalendriaasta,MONTH(AugP1+19)=8),AugP1+19,\"\"))","v":"2018-08-17"},{"$f":"IF(DAY(AugP1)=1,IF(AND(YEAR(AugP1+13)=Kalendriaasta,MONTH(AugP1+13)=8),AugP1+13,\"\"),IF(AND(YEAR(AugP1+20)=Kalendriaasta,MONTH(AugP1+20)=8),AugP1+20,\"\"))","v":"2018-08-18"},{"$f":"IF(DAY(AugP1)=1,IF(AND(YEAR(AugP1+14)=Kalendriaasta,MONTH(AugP1+14)=8),AugP1+14,\"\"),IF(AND(YEAR(AugP1+21)=Kalendriaasta,MONTH(AugP1+21)=8),AugP1+21,\"\"))","v":"2018-08-19"}]
[]
[null,{"$f":"IF(DAY(AugP1)=1,IF(AND(YEAR(AugP1+15)=Kalendriaasta,MONTH(AugP1+15)=8),AugP1+15,\"\"),IF(AND(YEAR(AugP1+22)=Kalendriaasta,MONTH(AugP1+22)=8),AugP1+22,\"\"))","v":"2018-08-20"},{"$f":"IF(DAY(AugP1)=1,IF(AND(YEAR(AugP1+16)=Kalendriaasta,MONTH(AugP1+16)=8),AugP1+16,\"\"),IF(AND(YEAR(AugP1+23)=Kalendriaasta,MONTH(AugP1+23)=8),AugP1+23,\"\"))","v":"2018-08-21"},{"$f":"IF(DAY(AugP1)=1,IF(AND(YEAR(AugP1+17)=Kalendriaasta,MONTH(AugP1+17)=8),AugP1+17,\"\"),IF(AND(YEAR(AugP1+24)=Kalendriaasta,MONTH(AugP1+24)=8),AugP1+24,\"\"))","v":"2018-08-22"},{"$f":"IF(DAY(AugP1)=1,IF(AND(YEAR(AugP1+18)=Kalendriaasta,MONTH(AugP1+18)=8),AugP1+18,\"\"),IF(AND(YEAR(AugP1+25)=Kalendriaasta,MONTH(AugP1+25)=8),AugP1+25,\"\"))","v":"2018-08-23"},{"$f":"IF(DAY(AugP1)=1,IF(AND(YEAR(AugP1+19)=Kalendriaasta,MONTH(AugP1+19)=8),AugP1+19,\"\"),IF(AND(YEAR(AugP1+26)=Kalendriaasta,MONTH(AugP1+26)=8),AugP1+26,\"\"))","v":"2018-08-24"},{"$f":"IF(DAY(AugP1)=1,IF(AND(YEAR(AugP1+20)=Kalendriaasta,MONTH(AugP1+20)=8),AugP1+20,\"\"),IF(AND(YEAR(AugP1+27)=Kalendriaasta,MONTH(AugP1+27)=8),AugP1+27,\"\"))","v":"2018-08-25"},{"$f":"IF(DAY(AugP1)=1,IF(AND(YEAR(AugP1+21)=Kalendriaasta,MONTH(AugP1+21)=8),AugP1+21,\"\"),IF(AND(YEAR(AugP1+28)=Kalendriaasta,MONTH(AugP1+28)=8),AugP1+28,\"\"))","v":"2018-08-26"}]
[]
[null,{"$f":"IF(DAY(AugP1)=1,IF(AND(YEAR(AugP1+22)=Kalendriaasta,MONTH(AugP1+22)=8),AugP1+22,\"\"),IF(AND(YEAR(AugP1+29)=Kalendriaasta,MONTH(AugP1+29)=8),AugP1+29,\"\"))","v":"2018-08-27"},{"$f":"IF(DAY(AugP1)=1,IF(AND(YEAR(AugP1+23)=Kalendriaasta,MONTH(AugP1+23)=8),AugP1+23,\"\"),IF(AND(YEAR(AugP1+30)=Kalendriaasta,MONTH(AugP1+30)=8),AugP1+30,\"\"))","v":"2018-08-28"},{"$f":"IF(DAY(AugP1)=1,IF(AND(YEAR(AugP1+24)=Kalendriaasta,MONTH(AugP1+24)=8),AugP1+24,\"\"),IF(AND(YEAR(AugP1+31)=Kalendriaasta,MONTH(AugP1+31)=8),AugP1+31,\"\"))","v":"2018-08-29"},{"$f":"IF(DAY(AugP1)=1,IF(AND(YEAR(AugP1+25)=Kalendriaasta,MONTH(AugP1+25)=8),AugP1+25,\"\"),IF(AND(YEAR(AugP1+32)=Kalendriaasta,MONTH(AugP1+32)=8),AugP1+32,\"\"))","v":"2018-08-30"},{"$f":"IF(DAY(AugP1)=1,IF(AND(YEAR(AugP1+26)=Kalendriaasta,MONTH(AugP1+26)=8),AugP1+26,\"\"),IF(AND(YEAR(AugP1+33)=Kalendriaasta,MONTH(AugP1+33)=8),AugP1+33,\"\"))","v":"2018-08-31"},{"$f":"IF(DAY(AugP1)=1,IF(AND(YEAR(AugP1+27)=Kalendriaasta,MONTH(AugP1+27)=8),AugP1+27,\"\"),IF(AND(YEAR(AugP1+34)=Kalendriaasta,MONTH(AugP1+34)=8),AugP1+34,\"\"))","v":""},{"$f":"IF(DAY(AugP1)=1,IF(AND(YEAR(AugP1+28)=Kalendriaasta,MONTH(AugP1+28)=8),AugP1+28,\"\"),IF(AND(YEAR(AugP1+35)=Kalendriaasta,MONTH(AugP1+35)=8),AugP1+35,\"\"))","v":""}]
[]
[null,{"$f":"IF(DAY(AugP1)=1,IF(AND(YEAR(AugP1+29)=Kalendriaasta,MONTH(AugP1+29)=8),AugP1+29,\"\"),IF(AND(YEAR(AugP1+36)=Kalendriaasta,MONTH(AugP1+36)=8),AugP1+36,\"\"))","v":""},{"$f":"IF(DAY(AugP1)=1,IF(AND(YEAR(AugP1+30)=Kalendriaasta,MONTH(AugP1+30)=8),AugP1+30,\"\"),IF(AND(YEAR(AugP1+37)=Kalendriaasta,MONTH(AugP1+37)=8),AugP1+37,\"\"))","v":""},"MÄRKMED:"]

{"sheet":"Sept","index":8,"n_rows":15,"n_cols":8,"rows_kept":15,"merged":[[2,1,2,5],[14,3,14,7],[15,3,15,7]]}
[]
[]
[null,{"$f":"UPPER(TEXT(DATE(Kalendriaasta,9,1),\"mmmm yyyy\"))","v":"SEPTEMBER 2018"}]
[null,"ESMASPÄEV","TEISIPÄEV","KOLMAPÄEV","NELJAPÄEV","REEDE","LAUPÄEV","PÜHAPÄEV"]
[null,{"$f":"IF(DAY(SeptP1)=1,\"\",IF(AND(YEAR(SeptP1+1)=Kalendriaasta,MONTH(SeptP1+1)=9),SeptP1+1,\"\"))","v":""},{"$f":"IF(DAY(SeptP1)=1,\"\",IF(AND(YEAR(SeptP1+2)=Kalendriaasta,MONTH(SeptP1+2)=9),SeptP1+2,\"\"))","v":""},{"$f":"IF(DAY(SeptP1)=1,\"\",IF(AND(YEAR(SeptP1+3)=Kalendriaasta,MONTH(SeptP1+3)=9),SeptP1+3,\"\"))","v":""},{"$f":"IF(DAY(SeptP1)=1,\"\",IF(AND(YEAR(SeptP1+4)=Kalendriaasta,MONTH(SeptP1+4)=9),SeptP1+4,\"\"))","v":""},{"$f":"IF(DAY(SeptP1)=1,\"\",IF(AND(YEAR(SeptP1+5)=Kalendriaasta,MONTH(SeptP1+5)=9),SeptP1+5,\"\"))","v":""},{"$f":"IF(DAY(SeptP1)=1,\"\",IF(AND(YEAR(SeptP1+6)=Kalendriaasta,MONTH(SeptP1+6)=9),SeptP1+6,\"\"))","v":"2018-09-01"},{"$f":"IF(DAY(SeptP1)=1,IF(AND(YEAR(SeptP1)=Kalendriaasta,MONTH(SeptP1)=9),SeptP1,\"\"),IF(AND(YEAR(SeptP1+7)=Kalendriaasta,MONTH(SeptP1+7)=9),SeptP1+7,\"\"))","v":"2018-09-02"}]
[]
[null,{"$f":"IF(DAY(SeptP1)=1,IF(AND(YEAR(SeptP1+1)=Kalendriaasta,MONTH(SeptP1+1)=9),SeptP1+1,\"\"),IF(AND(YEAR(SeptP1+8)=Kalendriaasta,MONTH(SeptP1+8)=9),SeptP1+8,\"\"))","v":"2018-09-03"},{"$f":"IF(DAY(SeptP1)=1,IF(AND(YEAR(SeptP1+2)=Kalendriaasta,MONTH(SeptP1+2)=9),SeptP1+2,\"\"),IF(AND(YEAR(SeptP1+9)=Kalendriaasta,MONTH(SeptP1+9)=9),SeptP1+9,\"\"))","v":"2018-09-04"},{"$f":"IF(DAY(SeptP1)=1,IF(AND(YEAR(SeptP1+3)=Kalendriaasta,MONTH(SeptP1+3)=9),SeptP1+3,\"\"),IF(AND(YEAR(SeptP1+10)=Kalendriaasta,MONTH(SeptP1+10)=9),SeptP1+10,\"\"))","v":"2018-09-05"},{"$f":"IF(DAY(SeptP1)=1,IF(AND(YEAR(SeptP1+4)=Kalendriaasta,MONTH(SeptP1+4)=9),SeptP1+4,\"\"),IF(AND(YEAR(SeptP1+11)=Kalendriaasta,MONTH(SeptP1+11)=9),SeptP1+11,\"\"))","v":"2018-09-06"},{"$f":"IF(DAY(SeptP1)=1,IF(AND(YEAR(SeptP1+5)=Kalendriaasta,MONTH(SeptP1+5)=9),SeptP1+5,\"\"),IF(AND(YEAR(SeptP1+12)=Kalendriaasta,MONTH(SeptP1+12)=9),SeptP1+12,\"\"))","v":"2018-09-07"},{"$f":"IF(DAY(SeptP1)=1,IF(AND(YEAR(SeptP1+6)=Kalendriaasta,MONTH(SeptP1+6)=9),SeptP1+6,\"\"),IF(AND(YEAR(SeptP1+13)=Kalendriaasta,MONTH(SeptP1+13)=9),SeptP1+13,\"\"))","v":"2018-09-08"},{"$f":"IF(DAY(SeptP1)=1,IF(AND(YEAR(SeptP1+7)=Kalendriaasta,MONTH(SeptP1+7)=9),SeptP1+7,\"\"),IF(AND(YEAR(SeptP1+14)=Kalendriaasta,MONTH(SeptP1+14)=9),SeptP1+14,\"\"))","v":"2018-09-09"}]
[]
[null,{"$f":"IF(DAY(SeptP1)=1,IF(AND(YEAR(SeptP1+8)=Kalendriaasta,MONTH(SeptP1+8)=9),SeptP1+8,\"\"),IF(AND(YEAR(SeptP1+15)=Kalendriaasta,MONTH(SeptP1+15)=9),SeptP1+15,\"\"))","v":"2018-09-10"},{"$f":"IF(DAY(SeptP1)=1,IF(AND(YEAR(SeptP1+9)=Kalendriaasta,MONTH(SeptP1+9)=9),SeptP1+9,\"\"),IF(AND(YEAR(SeptP1+16)=Kalendriaasta,MONTH(SeptP1+16)=9),SeptP1+16,\"\"))","v":"2018-09-11"},{"$f":"IF(DAY(SeptP1)=1,IF(AND(YEAR(SeptP1+10)=Kalendriaasta,MONTH(SeptP1+10)=9),SeptP1+10,\"\"),IF(AND(YEAR(SeptP1+17)=Kalendriaasta,MONTH(SeptP1+17)=9),SeptP1+17,\"\"))","v":"2018-09-12"},{"$f":"IF(DAY(SeptP1)=1,IF(AND(YEAR(SeptP1+11)=Kalendriaasta,MONTH(SeptP1+11)=9),SeptP1+11,\"\"),IF(AND(YEAR(SeptP1+18)=Kalendriaasta,MONTH(SeptP1+18)=9),SeptP1+18,\"\"))","v":"2018-09-13"},{"$f":"IF(DAY(SeptP1)=1,IF(AND(YEAR(SeptP1+12)=Kalendriaasta,MONTH(SeptP1+12)=9),SeptP1+12,\"\"),IF(AND(YEAR(SeptP1+19)=Kalendriaasta,MONTH(SeptP1+19)=9),SeptP1+19,\"\"))","v":"2018-09-14"},{"$f":"IF(DAY(SeptP1)=1,IF(AND(YEAR(SeptP1+13)=Kalendriaasta,MONTH(SeptP1+13)=9),SeptP1+13,\"\"),IF(AND(YEAR(SeptP1+20)=Kalendriaasta,MONTH(SeptP1+20)=9),SeptP1+20,\"\"))","v":"2018-09-15"},{"$f":"IF(DAY(SeptP1)=1,IF(AND(YEAR(SeptP1+14)=Kalendriaasta,MONTH(SeptP1+14)=9),SeptP1+14,\"\"),IF(AND(YEAR(SeptP1+21)=Kalendriaasta,MONTH(SeptP1+21)=9),SeptP1+21,\"\"))","v":"2018-09-16"}]
[]
[null,{"$f":"IF(DAY(SeptP1)=1,IF(AND(YEAR(SeptP1+15)=Kalendriaasta,MONTH(SeptP1+15)=9),SeptP1+15,\"\"),IF(AND(YEAR(SeptP1+22)=Kalendriaasta,MONTH(SeptP1+22)=9),SeptP1+22,\"\"))","v":"2018-09-17"},{"$f":"IF(DAY(SeptP1)=1,IF(AND(YEAR(SeptP1+16)=Kalendriaasta,MONTH(SeptP1+16)=9),SeptP1+16,\"\"),IF(AND(YEAR(SeptP1+23)=Kalendriaasta,MONTH(SeptP1+23)=9),SeptP1+23,\"\"))","v":"2018-09-18"},{"$f":"IF(DAY(SeptP1)=1,IF(AND(YEAR(SeptP1+17)=Kalendriaasta,MONTH(SeptP1+17)=9),SeptP1+17,\"\"),IF(AND(YEAR(SeptP1+24)=Kalendriaasta,MONTH(SeptP1+24)=9),SeptP1+24,\"\"))","v":"2018-09-19"},{"$f":"IF(DAY(SeptP1)=1,IF(AND(YEAR(SeptP1+18)=Kalendriaasta,MONTH(SeptP1+18)=9),SeptP1+18,\"\"),IF(AND(YEAR(SeptP1+25)=Kalendriaasta,MONTH(SeptP1+25)=9),SeptP1+25,\"\"))","v":"2018-09-20"},{"$f":"IF(DAY(SeptP1)=1,IF(AND(YEAR(SeptP1+19)=Kalendriaasta,MONTH(SeptP1+19)=9),SeptP1+19,\"\"),IF(AND(YEAR(SeptP1+26)=Kalendriaasta,MONTH(SeptP1+26)=9),SeptP1+26,\"\"))","v":"2018-09-21"},{"$f":"IF(DAY(SeptP1)=1,IF(AND(YEAR(SeptP1+20)=Kalendriaasta,MONTH(SeptP1+20)=9),SeptP1+20,\"\"),IF(AND(YEAR(SeptP1+27)=Kalendriaasta,MONTH(SeptP1+27)=9),SeptP1+27,\"\"))","v":"2018-09-22"},{"$f":"IF(DAY(SeptP1)=1,IF(AND(YEAR(SeptP1+21)=Kalendriaasta,MONTH(SeptP1+21)=9),SeptP1+21,\"\"),IF(AND(YEAR(SeptP1+28)=Kalendriaasta,MONTH(SeptP1+28)=9),SeptP1+28,\"\"))","v":"2018-09-23"}]
[]
[null,{"$f":"IF(DAY(SeptP1)=1,IF(AND(YEAR(SeptP1+22)=Kalendriaasta,MONTH(SeptP1+22)=9),SeptP1+22,\"\"),IF(AND(YEAR(SeptP1+29)=Kalendriaasta,MONTH(SeptP1+29)=9),SeptP1+29,\"\"))","v":"2018-09-24"},{"$f":"IF(DAY(SeptP1)=1,IF(AND(YEAR(SeptP1+23)=Kalendriaasta,MONTH(SeptP1+23)=9),SeptP1+23,\"\"),IF(AND(YEAR(SeptP1+30)=Kalendriaasta,MONTH(SeptP1+30)=9),SeptP1+30,\"\"))","v":"2018-09-25"},{"$f":"IF(DAY(SeptP1)=1,IF(AND(YEAR(SeptP1+24)=Kalendriaasta,MONTH(SeptP1+24)=9),SeptP1+24,\"\"),IF(AND(YEAR(SeptP1+31)=Kalendriaasta,MONTH(SeptP1+31)=9),SeptP1+31,\"\"))","v":"2018-09-26"},{"$f":"IF(DAY(SeptP1)=1,IF(AND(YEAR(SeptP1+25)=Kalendriaasta,MONTH(SeptP1+25)=9),SeptP1+25,\"\"),IF(AND(YEAR(SeptP1+32)=Kalendriaasta,MONTH(SeptP1+32)=9),SeptP1+32,\"\"))","v":"2018-09-27"},{"$f":"IF(DAY(SeptP1)=1,IF(AND(YEAR(SeptP1+26)=Kalendriaasta,MONTH(SeptP1+26)=9),SeptP1+26,\"\"),IF(AND(YEAR(SeptP1+33)=Kalendriaasta,MONTH(SeptP1+33)=9),SeptP1+33,\"\"))","v":"2018-09-28"},{"$f":"IF(DAY(SeptP1)=1,IF(AND(YEAR(SeptP1+27)=Kalendriaasta,MONTH(SeptP1+27)=9),SeptP1+27,\"\"),IF(AND(YEAR(SeptP1+34)=Kalendriaasta,MONTH(SeptP1+34)=9),SeptP1+34,\"\"))","v":"2018-09-29"},{"$f":"IF(DAY(SeptP1)=1,IF(AND(YEAR(SeptP1+28)=Kalendriaasta,MONTH(SeptP1+28)=9),SeptP1+28,\"\"),IF(AND(YEAR(SeptP1+35)=Kalendriaasta,MONTH(SeptP1+35)=9),SeptP1+35,\"\"))","v":"2018-09-30"}]
[]
[null,{"$f":"IF(DAY(SeptP1)=1,IF(AND(YEAR(SeptP1+29)=Kalendriaasta,MONTH(SeptP1+29)=9),SeptP1+29,\"\"),IF(AND(YEAR(SeptP1+36)=Kalendriaasta,MONTH(SeptP1+36)=9),SeptP1+36,\"\"))","v":""},{"$f":"IF(DAY(SeptP1)=1,IF(AND(YEAR(SeptP1+30)=Kalendriaasta,MONTH(SeptP1+30)=9),SeptP1+30,\"\"),IF(AND(YEAR(SeptP1+37)=Kalendriaasta,MONTH(SeptP1+37)=9),SeptP1+37,\"\"))","v":""},"MÄRKMED:"]

{"sheet":"Okt","index":9,"n_rows":15,"n_cols":8,"rows_kept":15,"merged":[[2,1,2,5],[14,3,14,7],[15,3,15,7]]}
[]
[]
[null,{"$f":"UPPER(TEXT(DATE(Kalendriaasta,10,1),\"mmmm yyyy\"))","v":"OKTOOBER 2018"}]
[null,"ESMASPÄEV","TEISIPÄEV","KOLMAPÄEV","NELJAPÄEV","REEDE","LAUPÄEV","PÜHAPÄEV"]
[null,{"$f":"IF(DAY(OktP1)=1,\"\",IF(AND(YEAR(OktP1+1)=Kalendriaasta,MONTH(OktP1+1)=10),OktP1+1,\"\"))","v":"2018-10-01"},{"$f":"IF(DAY(OktP1)=1,\"\",IF(AND(YEAR(OktP1+2)=Kalendriaasta,MONTH(OktP1+2)=10),OktP1+2,\"\"))","v":"2018-10-02"},{"$f":"IF(DAY(OktP1)=1,\"\",IF(AND(YEAR(OktP1+3)=Kalendriaasta,MONTH(OktP1+3)=10),OktP1+3,\"\"))","v":"2018-10-03"},{"$f":"IF(DAY(OktP1)=1,\"\",IF(AND(YEAR(OktP1+4)=Kalendriaasta,MONTH(OktP1+4)=10),OktP1+4,\"\"))","v":"2018-10-04"},{"$f":"IF(DAY(OktP1)=1,\"\",IF(AND(YEAR(OktP1+5)=Kalendriaasta,MONTH(OktP1+5)=10),OktP1+5,\"\"))","v":"2018-10-05"},{"$f":"IF(DAY(OktP1)=1,\"\",IF(AND(YEAR(OktP1+6)=Kalendriaasta,MONTH(OktP1+6)=10),OktP1+6,\"\"))","v":"2018-10-06"},{"$f":"IF(DAY(OktP1)=1,IF(AND(YEAR(OktP1)=Kalendriaasta,MONTH(OktP1)=10),OktP1,\"\"),IF(AND(YEAR(OktP1+7)=Kalendriaasta,MONTH(OktP1+7)=10),OktP1+7,\"\"))","v":"2018-10-07"}]
[]
[null,{"$f":"IF(DAY(OktP1)=1,IF(AND(YEAR(OktP1+1)=Kalendriaasta,MONTH(OktP1+1)=10),OktP1+1,\"\"),IF(AND(YEAR(OktP1+8)=Kalendriaasta,MONTH(OktP1+8)=10),OktP1+8,\"\"))","v":"2018-10-08"},{"$f":"IF(DAY(OktP1)=1,IF(AND(YEAR(OktP1+2)=Kalendriaasta,MONTH(OktP1+2)=10),OktP1+2,\"\"),IF(AND(YEAR(OktP1+9)=Kalendriaasta,MONTH(OktP1+9)=10),OktP1+9,\"\"))","v":"2018-10-09"},{"$f":"IF(DAY(OktP1)=1,IF(AND(YEAR(OktP1+3)=Kalendriaasta,MONTH(OktP1+3)=10),OktP1+3,\"\"),IF(AND(YEAR(OktP1+10)=Kalendriaasta,MONTH(OktP1+10)=10),OktP1+10,\"\"))","v":"2018-10-10"},{"$f":"IF(DAY(OktP1)=1,IF(AND(YEAR(OktP1+4)=Kalendriaasta,MONTH(OktP1+4)=10),OktP1+4,\"\"),IF(AND(YEAR(OktP1+11)=Kalendriaasta,MONTH(OktP1+11)=10),OktP1+11,\"\"))","v":"2018-10-11"},{"$f":"IF(DAY(OktP1)=1,IF(AND(YEAR(OktP1+5)=Kalendriaasta,MONTH(OktP1+5)=10),OktP1+5,\"\"),IF(AND(YEAR(OktP1+12)=Kalendriaasta,MONTH(OktP1+12)=10),OktP1+12,\"\"))","v":"2018-10-12"},{"$f":"IF(DAY(OktP1)=1,IF(AND(YEAR(OktP1+6)=Kalendriaasta,MONTH(OktP1+6)=10),OktP1+6,\"\"),IF(AND(YEAR(OktP1+13)=Kalendriaasta,MONTH(OktP1+13)=10),OktP1+13,\"\"))","v":"2018-10-13"},{"$f":"IF(DAY(OktP1)=1,IF(AND(YEAR(OktP1+7)=Kalendriaasta,MONTH(OktP1+7)=10),OktP1+7,\"\"),IF(AND(YEAR(OktP1+14)=Kalendriaasta,MONTH(OktP1+14)=10),OktP1+14,\"\"))","v":"2018-10-14"}]
[]
[null,{"$f":"IF(DAY(OktP1)=1,IF(AND(YEAR(OktP1+8)=Kalendriaasta,MONTH(OktP1+8)=10),OktP1+8,\"\"),IF(AND(YEAR(OktP1+15)=Kalendriaasta,MONTH(OktP1+15)=10),OktP1+15,\"\"))","v":"2018-10-15"},{"$f":"IF(DAY(OktP1)=1,IF(AND(YEAR(OktP1+9)=Kalendriaasta,MONTH(OktP1+9)=10),OktP1+9,\"\"),IF(AND(YEAR(OktP1+16)=Kalendriaasta,MONTH(OktP1+16)=10),OktP1+16,\"\"))","v":"2018-10-16"},{"$f":"IF(DAY(OktP1)=1,IF(AND(YEAR(OktP1+10)=Kalendriaasta,MONTH(OktP1+10)=10),OktP1+10,\"\"),IF(AND(YEAR(OktP1+17)=Kalendriaasta,MONTH(OktP1+17)=10),OktP1+17,\"\"))","v":"2018-10-17"},{"$f":"IF(DAY(OktP1)=1,IF(AND(YEAR(OktP1+11)=Kalendriaasta,MONTH(OktP1+11)=10),OktP1+11,\"\"),IF(AND(YEAR(OktP1+18)=Kalendriaasta,MONTH(OktP1+18)=10),OktP1+18,\"\"))","v":"2018-10-18"},{"$f":"IF(DAY(OktP1)=1,IF(AND(YEAR(OktP1+12)=Kalendriaasta,MONTH(OktP1+12)=10),OktP1+12,\"\"),IF(AND(YEAR(OktP1+19)=Kalendriaasta,MONTH(OktP1+19)=10),OktP1+19,\"\"))","v":"2018-10-19"},{"$f":"IF(DAY(OktP1)=1,IF(AND(YEAR(OktP1+13)=Kalendriaasta,MONTH(OktP1+13)=10),OktP1+13,\"\"),IF(AND(YEAR(OktP1+20)=Kalendriaasta,MONTH(OktP1+20)=10),OktP1+20,\"\"))","v":"2018-10-20"},{"$f":"IF(DAY(OktP1)=1,IF(AND(YEAR(OktP1+14)=Kalendriaasta,MONTH(OktP1+14)=10),OktP1+14,\"\"),IF(AND(YEAR(OktP1+21)=Kalendriaasta,MONTH(OktP1+21)=10),OktP1+21,\"\"))","v":"2018-10-21"}]
[]
[null,{"$f":"IF(DAY(OktP1)=1,IF(AND(YEAR(OktP1+15)=Kalendriaasta,MONTH(OktP1+15)=10),OktP1+15,\"\"),IF(AND(YEAR(OktP1+22)=Kalendriaasta,MONTH(OktP1+22)=10),OktP1+22,\"\"))","v":"2018-10-22"},{"$f":"IF(DAY(OktP1)=1,IF(AND(YEAR(OktP1+16)=Kalendriaasta,MONTH(OktP1+16)=10),OktP1+16,\"\"),IF(AND(YEAR(OktP1+23)=Kalendriaasta,MONTH(OktP1+23)=10),OktP1+23,\"\"))","v":"2018-10-23"},{"$f":"IF(DAY(OktP1)=1,IF(AND(YEAR(OktP1+17)=Kalendriaasta,MONTH(OktP1+17)=10),OktP1+17,\"\"),IF(AND(YEAR(OktP1+24)=Kalendriaasta,MONTH(OktP1+24)=10),OktP1+24,\"\"))","v":"2018-10-24"},{"$f":"IF(DAY(OktP1)=1,IF(AND(YEAR(OktP1+18)=Kalendriaasta,MONTH(OktP1+18)=10),OktP1+18,\"\"),IF(AND(YEAR(OktP1+25)=Kalendriaasta,MONTH(OktP1+25)=10),OktP1+25,\"\"))","v":"2018-10-25"},{"$f":"IF(DAY(OktP1)=1,IF(AND(YEAR(OktP1+19)=Kalendriaasta,MONTH(OktP1+19)=10),OktP1+19,\"\"),IF(AND(YEAR(OktP1+26)=Kalendriaasta,MONTH(OktP1+26)=10),OktP1+26,\"\"))","v":"2018-10-26"},{"$f":"IF(DAY(OktP1)=1,IF(AND(YEAR(OktP1+20)=Kalendriaasta,MONTH(OktP1+20)=10),OktP1+20,\"\"),IF(AND(YEAR(OktP1+27)=Kalendriaasta,MONTH(OktP1+27)=10),OktP1+27,\"\"))","v":"2018-10-27"},{"$f":"IF(DAY(OktP1)=1,IF(AND(YEAR(OktP1+21)=Kalendriaasta,MONTH(OktP1+21)=10),OktP1+21,\"\"),IF(AND(YEAR(OktP1+28)=Kalendriaasta,MONTH(OktP1+28)=10),OktP1+28,\"\"))","v":"2018-10-28"}]
[]
[null,{"$f":"IF(DAY(OktP1)=1,IF(AND(YEAR(OktP1+22)=Kalendriaasta,MONTH(OktP1+22)=10),OktP1+22,\"\"),IF(AND(YEAR(OktP1+29)=Kalendriaasta,MONTH(OktP1+29)=10),OktP1+29,\"\"))","v":"2018-10-29"},{"$f":"IF(DAY(OktP1)=1,IF(AND(YEAR(OktP1+23)=Kalendriaasta,MONTH(OktP1+23)=10),OktP1+23,\"\"),IF(AND(YEAR(OktP1+30)=Kalendriaasta,MONTH(OktP1+30)=10),OktP1+30,\"\"))","v":"2018-10-30"},{"$f":"IF(DAY(OktP1)=1,IF(AND(YEAR(OktP1+24)=Kalendriaasta,MONTH(OktP1+24)=10),OktP1+24,\"\"),IF(AND(YEAR(OktP1+31)=Kalendriaasta,MONTH(OktP1+31)=10),OktP1+31,\"\"))","v":"2018-10-31"},{"$f":"IF(DAY(OktP1)=1,IF(AND(YEAR(OktP1+25)=Kalendriaasta,MONTH(OktP1+25)=10),OktP1+25,\"\"),IF(AND(YEAR(OktP1+32)=Kalendriaasta,MONTH(OktP1+32)=10),OktP1+32,\"\"))","v":""},{"$f":"IF(DAY(OktP1)=1,IF(AND(YEAR(OktP1+26)=Kalendriaasta,MONTH(OktP1+26)=10),OktP1+26,\"\"),IF(AND(YEAR(OktP1+33)=Kalendriaasta,MONTH(OktP1+33)=10),OktP1+33,\"\"))","v":""},{"$f":"IF(DAY(OktP1)=1,IF(AND(YEAR(OktP1+27)=Kalendriaasta,MONTH(OktP1+27)=10),OktP1+27,\"\"),IF(AND(YEAR(OktP1+34)=Kalendriaasta,MONTH(OktP1+34)=10),OktP1+34,\"\"))","v":""},{"$f":"IF(DAY(OktP1)=1,IF(AND(YEAR(OktP1+28)=Kalendriaasta,MONTH(OktP1+28)=10),OktP1+28,\"\"),IF(AND(YEAR(OktP1+35)=Kalendriaasta,MONTH(OktP1+35)=10),OktP1+35,\"\"))","v":""}]
[]
[null,{"$f":"IF(DAY(OktP1)=1,IF(AND(YEAR(OktP1+29)=Kalendriaasta,MONTH(OktP1+29)=10),OktP1+29,\"\"),IF(AND(YEAR(OktP1+36)=Kalendriaasta,MONTH(OktP1+36)=10),OktP1+36,\"\"))","v":""},{"$f":"IF(DAY(OktP1)=1,IF(AND(YEAR(OktP1+30)=Kalendriaasta,MONTH(OktP1+30)=10),OktP1+30,\"\"),IF(AND(YEAR(OktP1+37)=Kalendriaasta,MONTH(OktP1+37)=10),OktP1+37,\"\"))","v":""},"MÄRKMED:"]

{"sheet":"Nov","index":10,"n_rows":15,"n_cols":8,"rows_kept":15,"merged":[[2,1,2,5],[14,3,14,7],[15,3,15,7]]}
[]
[]
[null,{"$f":"UPPER(TEXT(DATE(Kalendriaasta,11,1),\"mmmm yyyy\"))","v":"NOVEMBER 2018"}]
[null,"ESMASPÄEV","TEISIPÄEV","KOLMAPÄEV","NELJAPÄEV","REEDE","LAUPÄEV","PÜHAPÄEV"]
[null,{"$f":"IF(DAY(NovP1)=1,\"\",IF(AND(YEAR(NovP1+1)=Kalendriaasta,MONTH(NovP1+1)=11),NovP1+1,\"\"))","v":""},{"$f":"IF(DAY(NovP1)=1,\"\",IF(AND(YEAR(NovP1+2)=Kalendriaasta,MONTH(NovP1+2)=11),NovP1+2,\"\"))","v":""},{"$f":"IF(DAY(NovP1)=1,\"\",IF(AND(YEAR(NovP1+3)=Kalendriaasta,MONTH(NovP1+3)=11),NovP1+3,\"\"))","v":""},{"$f":"IF(DAY(NovP1)=1,\"\",IF(AND(YEAR(NovP1+4)=Kalendriaasta,MONTH(NovP1+4)=11),NovP1+4,\"\"))","v":"2018-11-01"},{"$f":"IF(DAY(NovP1)=1,\"\",IF(AND(YEAR(NovP1+5)=Kalendriaasta,MONTH(NovP1+5)=11),NovP1+5,\"\"))","v":"2018-11-02"},{"$f":"IF(DAY(NovP1)=1,\"\",IF(AND(YEAR(NovP1+6)=Kalendriaasta,MONTH(NovP1+6)=11),NovP1+6,\"\"))","v":"2018-11-03"},{"$f":"IF(DAY(NovP1)=1,IF(AND(YEAR(NovP1)=Kalendriaasta,MONTH(NovP1)=11),NovP1,\"\"),IF(AND(YEAR(NovP1+7)=Kalendriaasta,MONTH(NovP1+7)=11),NovP1+7,\"\"))","v":"2018-11-04"}]
[]
[null,{"$f":"IF(DAY(NovP1)=1,IF(AND(YEAR(NovP1+1)=Kalendriaasta,MONTH(NovP1+1)=11),NovP1+1,\"\"),IF(AND(YEAR(NovP1+8)=Kalendriaasta,MONTH(NovP1+8)=11),NovP1+8,\"\"))","v":"2018-11-05"},{"$f":"IF(DAY(NovP1)=1,IF(AND(YEAR(NovP1+2)=Kalendriaasta,MONTH(NovP1+2)=11),NovP1+2,\"\"),IF(AND(YEAR(NovP1+9)=Kalendriaasta,MONTH(NovP1+9)=11),NovP1+9,\"\"))","v":"2018-11-06"},{"$f":"IF(DAY(NovP1)=1,IF(AND(YEAR(NovP1+3)=Kalendriaasta,MONTH(NovP1+3)=11),NovP1+3,\"\"),IF(AND(YEAR(NovP1+10)=Kalendriaasta,MONTH(NovP1+10)=11),NovP1+10,\"\"))","v":"2018-11-07"},{"$f":"IF(DAY(NovP1)=1,IF(AND(YEAR(NovP1+4)=Kalendriaasta,MONTH(NovP1+4)=11),NovP1+4,\"\"),IF(AND(YEAR(NovP1+11)=Kalendriaasta,MONTH(NovP1+11)=11),NovP1+11,\"\"))","v":"2018-11-08"},{"$f":"IF(DAY(NovP1)=1,IF(AND(YEAR(NovP1+5)=Kalendriaasta,MONTH(NovP1+5)=11),NovP1+5,\"\"),IF(AND(YEAR(NovP1+12)=Kalendriaasta,MONTH(NovP1+12)=11),NovP1+12,\"\"))","v":"2018-11-09"},{"$f":"IF(DAY(NovP1)=1,IF(AND(YEAR(NovP1+6)=Kalendriaasta,MONTH(NovP1+6)=11),NovP1+6,\"\"),IF(AND(YEAR(NovP1+13)=Kalendriaasta,MONTH(NovP1+13)=11),NovP1+13,\"\"))","v":"2018-11-10"},{"$f":"IF(DAY(NovP1)=1,IF(AND(YEAR(NovP1+7)=Kalendriaasta,MONTH(NovP1+7)=11),NovP1+7,\"\"),IF(AND(YEAR(NovP1+14)=Kalendriaasta,MONTH(NovP1+14)=11),NovP1+14,\"\"))","v":"2018-11-11"}]
[]
[null,{"$f":"IF(DAY(NovP1)=1,IF(AND(YEAR(NovP1+8)=Kalendriaasta,MONTH(NovP1+8)=11),NovP1+8,\"\"),IF(AND(YEAR(NovP1+15)=Kalendriaasta,MONTH(NovP1+15)=11),NovP1+15,\"\"))","v":"2018-11-12"},{"$f":"IF(DAY(NovP1)=1,IF(AND(YEAR(NovP1+9)=Kalendriaasta,MONTH(NovP1+9)=11),NovP1+9,\"\"),IF(AND(YEAR(NovP1+16)=Kalendriaasta,MONTH(NovP1+16)=11),NovP1+16,\"\"))","v":"2018-11-13"},{"$f":"IF(DAY(NovP1)=1,IF(AND(YEAR(NovP1+10)=Kalendriaasta,MONTH(NovP1+10)=11),NovP1+10,\"\"),IF(AND(YEAR(NovP1+17)=Kalendriaasta,MONTH(NovP1+17)=11),NovP1+17,\"\"))","v":"2018-11-14"},{"$f":"IF(DAY(NovP1)=1,IF(AND(YEAR(NovP1+11)=Kalendriaasta,MONTH(NovP1+11)=11),NovP1+11,\"\"),IF(AND(YEAR(NovP1+18)=Kalendriaasta,MONTH(NovP1+18)=11),NovP1+18,\"\"))","v":"2018-11-15"},{"$f":"IF(DAY(NovP1)=1,IF(AND(YEAR(NovP1+12)=Kalendriaasta,MONTH(NovP1+12)=11),NovP1+12,\"\"),IF(AND(YEAR(NovP1+19)=Kalendriaasta,MONTH(NovP1+19)=11),NovP1+19,\"\"))","v":"2018-11-16"},{"$f":"IF(DAY(NovP1)=1,IF(AND(YEAR(NovP1+13)=Kalendriaasta,MONTH(NovP1+13)=11),NovP1+13,\"\"),IF(AND(YEAR(NovP1+20)=Kalendriaasta,MONTH(NovP1+20)=11),NovP1+20,\"\"))","v":"2018-11-17"},{"$f":"IF(DAY(NovP1)=1,IF(AND(YEAR(NovP1+14)=Kalendriaasta,MONTH(NovP1+14)=11),NovP1+14,\"\"),IF(AND(YEAR(NovP1+21)=Kalendriaasta,MONTH(NovP1+21)=11),NovP1+21,\"\"))","v":"2018-11-18"}]
[]
[null,{"$f":"IF(DAY(NovP1)=1,IF(AND(YEAR(NovP1+15)=Kalendriaasta,MONTH(NovP1+15)=11),NovP1+15,\"\"),IF(AND(YEAR(NovP1+22)=Kalendriaasta,MONTH(NovP1+22)=11),NovP1+22,\"\"))","v":"2018-11-19"},{"$f":"IF(DAY(NovP1)=1,IF(AND(YEAR(NovP1+16)=Kalendriaasta,MONTH(NovP1+16)=11),NovP1+16,\"\"),IF(AND(YEAR(NovP1+23)=Kalendriaasta,MONTH(NovP1+23)=11),NovP1+23,\"\"))","v":"2018-11-20"},{"$f":"IF(DAY(NovP1)=1,IF(AND(YEAR(NovP1+17)=Kalendriaasta,MONTH(NovP1+17)=11),NovP1+17,\"\"),IF(AND(YEAR(NovP1+24)=Kalendriaasta,MONTH(NovP1+24)=11),NovP1+24,\"\"))","v":"2018-11-21"},{"$f":"IF(DAY(NovP1)=1,IF(AND(YEAR(NovP1+18)=Kalendriaasta,MONTH(NovP1+18)=11),NovP1+18,\"\"),IF(AND(YEAR(NovP1+25)=Kalendriaasta,MONTH(NovP1+25)=11),NovP1+25,\"\"))","v":"2018-11-22"},{"$f":"IF(DAY(NovP1)=1,IF(AND(YEAR(NovP1+19)=Kalendriaasta,MONTH(NovP1+19)=11),NovP1+19,\"\"),IF(AND(YEAR(NovP1+26)=Kalendriaasta,MONTH(NovP1+26)=11),NovP1+26,\"\"))","v":"2018-11-23"},{"$f":"IF(DAY(NovP1)=1,IF(AND(YEAR(NovP1+20)=Kalendriaasta,MONTH(NovP1+20)=11),NovP1+20,\"\"),IF(AND(YEAR(NovP1+27)=Kalendriaasta,MONTH(NovP1+27)=11),NovP1+27,\"\"))","v":"2018-11-24"},{"$f":"IF(DAY(NovP1)=1,IF(AND(YEAR(NovP1+21)=Kalendriaasta,MONTH(NovP1+21)=11),NovP1+21,\"\"),IF(AND(YEAR(NovP1+28)=Kalendriaasta,MONTH(NovP1+28)=11),NovP1+28,\"\"))","v":"2018-11-25"}]
[]
[null,{"$f":"IF(DAY(NovP1)=1,IF(AND(YEAR(NovP1+22)=Kalendriaasta,MONTH(NovP1+22)=11),NovP1+22,\"\"),IF(AND(YEAR(NovP1+29)=Kalendriaasta,MONTH(NovP1+29)=11),NovP1+29,\"\"))","v":"2018-11-26"},{"$f":"IF(DAY(NovP1)=1,IF(AND(YEAR(NovP1+23)=Kalendriaasta,MONTH(NovP1+23)=11),NovP1+23,\"\"),IF(AND(YEAR(NovP1+30)=Kalendriaasta,MONTH(NovP1+30)=11),NovP1+30,\"\"))","v":"2018-11-27"},{"$f":"IF(DAY(NovP1)=1,IF(AND(YEAR(NovP1+24)=Kalendriaasta,MONTH(NovP1+24)=11),NovP1+24,\"\"),IF(AND(YEAR(NovP1+31)=Kalendriaasta,MONTH(NovP1+31)=11),NovP1+31,\"\"))","v":"2018-11-28"},{"$f":"IF(DAY(NovP1)=1,IF(AND(YEAR(NovP1+25)=Kalendriaasta,MONTH(NovP1+25)=11),NovP1+25,\"\"),IF(AND(YEAR(NovP1+32)=Kalendriaasta,MONTH(NovP1+32)=11),NovP1+32,\"\"))","v":"2018-11-29"},{"$f":"IF(DAY(NovP1)=1,IF(AND(YEAR(NovP1+26)=Kalendriaasta,MONTH(NovP1+26)=11),NovP1+26,\"\"),IF(AND(YEAR(NovP1+33)=Kalendriaasta,MONTH(NovP1+33)=11),NovP1+33,\"\"))","v":"2018-11-30"},{"$f":"IF(DAY(NovP1)=1,IF(AND(YEAR(NovP1+27)=Kalendriaasta,MONTH(NovP1+27)=11),NovP1+27,\"\"),IF(AND(YEAR(NovP1+34)=Kalendriaasta,MONTH(NovP1+34)=11),NovP1+34,\"\"))","v":""},{"$f":"IF(DAY(NovP1)=1,IF(AND(YEAR(NovP1+28)=Kalendriaasta,MONTH(NovP1+28)=11),NovP1+28,\"\"),IF(AND(YEAR(NovP1+35)=Kalendriaasta,MONTH(NovP1+35)=11),NovP1+35,\"\"))","v":""}]
[]
[null,{"$f":"IF(DAY(NovP1)=1,IF(AND(YEAR(NovP1+29)=Kalendriaasta,MONTH(NovP1+29)=11),NovP1+29,\"\"),IF(AND(YEAR(NovP1+36)=Kalendriaasta,MONTH(NovP1+36)=11),NovP1+36,\"\"))","v":""},{"$f":"IF(DAY(NovP1)=1,IF(AND(YEAR(NovP1+30)=Kalendriaasta,MONTH(NovP1+30)=11),NovP1+30,\"\"),IF(AND(YEAR(NovP1+37)=Kalendriaasta,MONTH(NovP1+37)=11),NovP1+37,\"\"))","v":""},"MÄRKMED:"]

{"sheet":"Dets","index":11,"n_rows":15,"n_cols":8,"rows_kept":15,"merged":[[2,1,2,5],[14,3,14,7],[15,3,15,7]]}
[]
[]
[null,{"$f":"UPPER(TEXT(DATE(Kalendriaasta,12,1),\"mmmm yyyy\"))","v":"DETSEMBER 2018"}]
[null,"ESMASPÄEV","TEISIPÄEV","KOLMAPÄEV","NELJAPÄEV","REEDE","LAUPÄEV","PÜHAPÄEV"]
[null,{"$f":"IF(DAY(DetsP1)=1,\"\",IF(AND(YEAR(DetsP1+1)=Kalendriaasta,MONTH(DetsP1+1)=12),DetsP1+1,\"\"))","v":""},{"$f":"IF(DAY(DetsP1)=1,\"\",IF(AND(YEAR(DetsP1+2)=Kalendriaasta,MONTH(DetsP1+2)=12),DetsP1+2,\"\"))","v":""},{"$f":"IF(DAY(DetsP1)=1,\"\",IF(AND(YEAR(DetsP1+3)=Kalendriaasta,MONTH(DetsP1+3)=12),DetsP1+3,\"\"))","v":""},{"$f":"IF(DAY(DetsP1)=1,\"\",IF(AND(YEAR(DetsP1+4)=Kalendriaasta,MONTH(DetsP1+4)=12),DetsP1+4,\"\"))","v":""},{"$f":"IF(DAY(DetsP1)=1,\"\",IF(AND(YEAR(DetsP1+5)=Kalendriaasta,MONTH(DetsP1+5)=12),DetsP1+5,\"\"))","v":""},{"$f":"IF(DAY(DetsP1)=1,\"\",IF(AND(YEAR(DetsP1+6)=Kalendriaasta,MONTH(DetsP1+6)=12),DetsP1+6,\"\"))","v":"2018-12-01"},{"$f":"IF(DAY(DetsP1)=1,IF(AND(YEAR(DetsP1)=Kalendriaasta,MONTH(DetsP1)=12),DetsP1,\"\"),IF(AND(YEAR(DetsP1+7)=Kalendriaasta,MONTH(DetsP1+7)=12),DetsP1+7,\"\"))","v":"2018-12-02"}]
[]
[null,{"$f":"IF(DAY(DetsP1)=1,IF(AND(YEAR(DetsP1+1)=Kalendriaasta,MONTH(DetsP1+1)=12),DetsP1+1,\"\"),IF(AND(YEAR(DetsP1+8)=Kalendriaasta,MONTH(DetsP1+8)=12),DetsP1+8,\"\"))","v":"2018-12-03"},{"$f":"IF(DAY(DetsP1)=1,IF(AND(YEAR(DetsP1+2)=Kalendriaasta,MONTH(DetsP1+2)=12),DetsP1+2,\"\"),IF(AND(YEAR(DetsP1+9)=Kalendriaasta,MONTH(DetsP1+9)=12),DetsP1+9,\"\"))","v":"2018-12-04"},{"$f":"IF(DAY(DetsP1)=1,IF(AND(YEAR(DetsP1+3)=Kalendriaasta,MONTH(DetsP1+3)=12),DetsP1+3,\"\"),IF(AND(YEAR(DetsP1+10)=Kalendriaasta,MONTH(DetsP1+10)=12),DetsP1+10,\"\"))","v":"2018-12-05"},{"$f":"IF(DAY(DetsP1)=1,IF(AND(YEAR(DetsP1+4)=Kalendriaasta,MONTH(DetsP1+4)=12),DetsP1+4,\"\"),IF(AND(YEAR(DetsP1+11)=Kalendriaasta,MONTH(DetsP1+11)=12),DetsP1+11,\"\"))","v":"2018-12-06"},{"$f":"IF(DAY(DetsP1)=1,IF(AND(YEAR(DetsP1+5)=Kalendriaasta,MONTH(DetsP1+5)=12),DetsP1+5,\"\"),IF(AND(YEAR(DetsP1+12)=Kalendriaasta,MONTH(DetsP1+12)=12),DetsP1+12,\"\"))","v":"2018-12-07"},{"$f":"IF(DAY(DetsP1)=1,IF(AND(YEAR(DetsP1+6)=Kalendriaasta,MONTH(DetsP1+6)=12),DetsP1+6,\"\"),IF(AND(YEAR(DetsP1+13)=Kalendriaasta,MONTH(DetsP1+13)=12),DetsP1+13,\"\"))","v":"2018-12-08"},{"$f":"IF(DAY(DetsP1)=1,IF(AND(YEAR(DetsP1+7)=Kalendriaasta,MONTH(DetsP1+7)=12),DetsP1+7,\"\"),IF(AND(YEAR(DetsP1+14)=Kalendriaasta,MONTH(DetsP1+14)=12),DetsP1+14,\"\"))","v":"2018-12-09"}]
[]
[null,{"$f":"IF(DAY(DetsP1)=1,IF(AND(YEAR(DetsP1+8)=Kalendriaasta,MONTH(DetsP1+8)=12),DetsP1+8,\"\"),IF(AND(YEAR(DetsP1+15)=Kalendriaasta,MONTH(DetsP1+15)=12),DetsP1+15,\"\"))","v":"2018-12-10"},{"$f":"IF(DAY(DetsP1)=1,IF(AND(YEAR(DetsP1+9)=Kalendriaasta,MONTH(DetsP1+9)=12),DetsP1+9,\"\"),IF(AND(YEAR(DetsP1+16)=Kalendriaasta,MONTH(DetsP1+16)=12),DetsP1+16,\"\"))","v":"2018-12-11"},{"$f":"IF(DAY(DetsP1)=1,IF(AND(YEAR(DetsP1+10)=Kalendriaasta,MONTH(DetsP1+10)=12),DetsP1+10,\"\"),IF(AND(YEAR(DetsP1+17)=Kalendriaasta,MONTH(DetsP1+17)=12),DetsP1+17,\"\"))","v":"2018-12-12"},{"$f":"IF(DAY(DetsP1)=1,IF(AND(YEAR(DetsP1+11)=Kalendriaasta,MONTH(DetsP1+11)=12),DetsP1+11,\"\"),IF(AND(YEAR(DetsP1+18)=Kalendriaasta,MONTH(DetsP1+18)=12),DetsP1+18,\"\"))","v":"2018-12-13"},{"$f":"IF(DAY(DetsP1)=1,IF(AND(YEAR(DetsP1+12)=Kalendriaasta,MONTH(DetsP1+12)=12),DetsP1+12,\"\"),IF(AND(YEAR(DetsP1+19)=Kalendriaasta,MONTH(DetsP1+19)=12),DetsP1+19,\"\"))","v":"2018-12-14"},{"$f":"IF(DAY(DetsP1)=1,IF(AND(YEAR(DetsP1+13)=Kalendriaasta,MONTH(DetsP1+13)=12),DetsP1+13,\"\"),IF(AND(YEAR(DetsP1+20)=Kalendriaasta,MONTH(DetsP1+20)=12),DetsP1+20,\"\"))","v":"2018-12-15"},{"$f":"IF(DAY(DetsP1)=1,IF(AND(YEAR(DetsP1+14)=Kalendriaasta,MONTH(DetsP1+14)=12),DetsP1+14,\"\"),IF(AND(YEAR(DetsP1+21)=Kalendriaasta,MONTH(DetsP1+21)=12),DetsP1+21,\"\"))","v":"2018-12-16"}]
[]
[null,{"$f":"IF(DAY(DetsP1)=1,IF(AND(YEAR(DetsP1+15)=Kalendriaasta,MONTH(DetsP1+15)=12),DetsP1+15,\"\"),IF(AND(YEAR(DetsP1+22)=Kalendriaasta,MONTH(DetsP1+22)=12),DetsP1+22,\"\"))","v":"2018-12-17"},{"$f":"IF(DAY(DetsP1)=1,IF(AND(YEAR(DetsP1+16)=Kalendriaasta,MONTH(DetsP1+16)=12),DetsP1+16,\"\"),IF(AND(YEAR(DetsP1+23)=Kalendriaasta,MONTH(DetsP1+23)=12),DetsP1+23,\"\"))","v":"2018-12-18"},{"$f":"IF(DAY(DetsP1)=1,IF(AND(YEAR(DetsP1+17)=Kalendriaasta,MONTH(DetsP1+17)=12),DetsP1+17,\"\"),IF(AND(YEAR(DetsP1+24)=Kalendriaasta,MONTH(DetsP1+24)=12),DetsP1+24,\"\"))","v":"2018-12-19"},{"$f":"IF(DAY(DetsP1)=1,IF(AND(YEAR(DetsP1+18)=Kalendriaasta,MONTH(DetsP1+18)=12),DetsP1+18,\"\"),IF(AND(YEAR(DetsP1+25)=Kalendriaasta,MONTH(DetsP1+25)=12),DetsP1+25,\"\"))","v":"2018-12-20"},{"$f":"IF(DAY(DetsP1)=1,IF(AND(YEAR(DetsP1+19)=Kalendriaasta,MONTH(DetsP1+19)=12),DetsP1+19,\"\"),IF(AND(YEAR(DetsP1+26)=Kalendriaasta,MONTH(DetsP1+26)=12),DetsP1+26,\"\"))","v":"2018-12-21"},{"$f":"IF(DAY(DetsP1)=1,IF(AND(YEAR(DetsP1+20)=Kalendriaasta,MONTH(DetsP1+20)=12),DetsP1+20,\"\"),IF(AND(YEAR(DetsP1+27)=Kalendriaasta,MONTH(DetsP1+27)=12),DetsP1+27,\"\"))","v":"2018-12-22"},{"$f":"IF(DAY(DetsP1)=1,IF(AND(YEAR(DetsP1+21)=Kalendriaasta,MONTH(DetsP1+21)=12),DetsP1+21,\"\"),IF(AND(YEAR(DetsP1+28)=Kalendriaasta,MONTH(DetsP1+28)=12),DetsP1+28,\"\"))","v":"2018-12-23"}]
[]
[null,{"$f":"IF(DAY(DetsP1)=1,IF(AND(YEAR(DetsP1+22)=Kalendriaasta,MONTH(DetsP1+22)=12),DetsP1+22,\"\"),IF(AND(YEAR(DetsP1+29)=Kalendriaasta,MONTH(DetsP1+29)=12),DetsP1+29,\"\"))","v":"2018-12-24"},{"$f":"IF(DAY(DetsP1)=1,IF(AND(YEAR(DetsP1+23)=Kalendriaasta,MONTH(DetsP1+23)=12),DetsP1+23,\"\"),IF(AND(YEAR(DetsP1+30)=Kalendriaasta,MONTH(DetsP1+30)=12),DetsP1+30,\"\"))","v":"2018-12-25"},{"$f":"IF(DAY(DetsP1)=1,IF(AND(YEAR(DetsP1+24)=Kalendriaasta,MONTH(DetsP1+24)=12),DetsP1+24,\"\"),IF(AND(YEAR(DetsP1+31)=Kalendriaasta,MONTH(DetsP1+31)=12),DetsP1+31,\"\"))","v":"2018-12-26"},{"$f":"IF(DAY(DetsP1)=1,IF(AND(YEAR(DetsP1+25)=Kalendriaasta,MONTH(DetsP1+25)=12),DetsP1+25,\"\"),IF(AND(YEAR(DetsP1+32)=Kalendriaasta,MONTH(DetsP1+32)=12),DetsP1+32,\"\"))","v":"2018-12-27"},{"$f":"IF(DAY(DetsP1)=1,IF(AND(YEAR(DetsP1+26)=Kalendriaasta,MONTH(DetsP1+26)=12),DetsP1+26,\"\"),IF(AND(YEAR(DetsP1+33)=Kalendriaasta,MONTH(DetsP1+33)=12),DetsP1+33,\"\"))","v":"2018-12-28"},{"$f":"IF(DAY(DetsP1)=1,IF(AND(YEAR(DetsP1+27)=Kalendriaasta,MONTH(DetsP1+27)=12),DetsP1+27,\"\"),IF(AND(YEAR(DetsP1+34)=Kalendriaasta,MONTH(DetsP1+34)=12),DetsP1+34,\"\"))","v":"2018-12-29"},{"$f":"IF(DAY(DetsP1)=1,IF(AND(YEAR(DetsP1+28)=Kalendriaasta,MONTH(DetsP1+28)=12),DetsP1+28,\"\"),IF(AND(YEAR(DetsP1+35)=Kalendriaasta,MONTH(DetsP1+35)=12),DetsP1+35,\"\"))","v":"2018-12-30"}]
[]
[null,{"$f":"IF(DAY(DetsP1)=1,IF(AND(YEAR(DetsP1+29)=Kalendriaasta,MONTH(DetsP1+29)=12),DetsP1+29,\"\"),IF(AND(YEAR(DetsP1+36)=Kalendriaasta,MONTH(DetsP1+36)=12),DetsP1+36,\"\"))","v":"2018-12-31"},{"$f":"IF(DAY(DetsP1)=1,IF(AND(YEAR(DetsP1+30)=Kalendriaasta,MONTH(DetsP1+30)=12),DetsP1+30,\"\"),IF(AND(YEAR(DetsP1+37)=Kalendriaasta,MONTH(DetsP1+37)=12),DetsP1+37,\"\"))","v":""},"MÄRKMED:"]